{"text_format":"1","workbook":"xlsx","n_sheets":13,"sheets":["Equipment Request","MAI Upload","Upload Mapping Key","Product List","Equipment List","Ancillary List","Power Kits","Novation Allowance Tool","Sheet Parameters","Drop Downs","Approval","Nema Plugs","Workflow"],"not_rendered":{"charts":0,"images":0,"macros":1,"external_links":0,"defined_names":18,"comments":1,"pivot_tables":0},"unopened":[],"bounds":{"document_bytes":16777216,"sheet_cells":100000,"rows_first":2000,"rows_last":500,"rows_between":2000,"halvings":0,"cell_chars":16384,"cell_head_chars":4096},"cells_cut":0,"cells_raw":0,"read":"whole","date_system":"1900"}

{"sheet":"Equipment Request","index":0,"n_rows":50,"n_cols":14,"rows_kept":50,"cut":false,"hidden":false,"merged":[[24,0,24,1],[23,0,23,1],[15,2,15,5],[21,0,21,5],[31,8,31,11],[30,6,30,7],[30,8,30,11],[27,0,27,1],[16,0,16,5],[18,0,18,1],[18,2,18,5],[25,2,25,5],[22,2,22,5],[24,2,24,5],[19,2,19,5],[22,0,22,1],[17,9,17,13],[20,7,25,13],[14,7,14,8],[15,7,15,8],[16,7,16,8],[17,7,17,8],[52,1,52,2],[44,0,44,5],[23,2,23,5],[11,9,11,13],[31,6,31,7],[32,6,32,7],[32,8,32,11],[35,6,35,7],[35,8,35,11],[35,3,35,5],[19,7,19,12],[27,2,27,5],[17,0,17,1],[17,2,17,5],[26,0,26,1],[25,0,25,1],[19,0,19,1],[15,0,15,1],[11,7,11,8],[12,7,12,8],[12,9,12,13],[13,7,13,13],[13,0,13,1],[13,2,13,5],[11,0,11,1],[11,2,11,5],[14,2,14,5],[14,0,14,1],[12,0,12,5],[14,9,14,13],[15,9,15,13],[16,9,16,13],[8,0,8,1],[8,2,8,5],[7,0,7,1],[9,9,9,13],[10,9,10,13],[9,7,9,8],[10,7,10,8],[9,0,9,1],[9,2,9,5],[10,0,10,1],[10,2,10,5],[4,0,4,1],[4,2,4,5],[6,2,6,5],[5,0,5,1],[5,2,5,5],[6,0,6,1],[3,2,3,5],[3,7,3,8],[3,12,3,13],[8,9,8,13],[8,7,8,8],[7,9,7,13],[7,2,7,5],[7,7,7,8],[29,0,29,5],[33,0,33,5],[38,0,38,5],[0,9,0,10],[0,12,0,13],[6,9,6,13],[5,7,5,8],[6,7,6,8],[4,7,4,8],[2,7,2,13],[3,10,3,11],[0,0,0,7],[2,0,2,5],[3,0,3,1],[4,9,4,13],[5,9,5,13]]}
["E&S Order Request V2.5",null,null,null,null,null,null,null,"Doc ID: ",null,null,"SCF"]
[]
["Customer Information",null,null,null,null,null,null,"Account Information"]
["Date Initiated ",null,null,null,null,null,null,"Contract Type",null,null,"Customer PO"]
["New/Existing Customer",null,null,null,null,null,null,"CBS ID"]
["FEAST #",null,null,null,null,null,null,"Channel"]
["Business Name/DBA",null,null,null,null,null,null,"Distributor Name/City "]
["Address Line 1 ",null,null,null,null,null,null,"Parent/Contract Name"]
["Address Line 2 ",null,null,null,null,null,null,"Purchasing Product from"]
["City",null,null,null,null,null,null,"Store/Location #: "]
["State",null,null,null,null,null,null,"TSM Name"]
["Zip",null,null,null,null,null,null,"TSM #"]
["Customer Contact",null,null,null,null,null,null,"TSM Ph # "]
[" Contact Name/Title ",null,null,null,null,null,null,"Billing Information - Only required if different from Customer Info"]
["Phone # ",null,null,null,null,null,null,"Name"]
["E-mail Address ",null,null,null,null,null,null,"Address"]
["Installation Contact (if different then customer contact such as OCS distributor contacts) ",null,null,null,null,null,null,"City, State"]
["Contact Name/Title",null,null,null,null,null,null,"Zip"]
["Phone # "]
["E-mail Address ",null,null,null,null,null,null,"Notes:"]
[]
["Placement Information"]
["Placement Reason"]
["Install Required (choose)"]
["Ship to (Choose one)"]
[]
[]
[]
[]
["Product Selection -  VOLUME PER WEEK ONLY"]
[]
[]
[]
["Equipment Selection"]
[]
[]
[]
[null,null,null,null,null,null,null,null,null,null,null,null,"Total: ",{"$f":"SUM(INDIRECT(\"N\"&'Sheet Parameters'!B5&\":N\"&'Sheet Parameters'!B6))","v":0}]
["Ancillary Selection  "]
[]
[]
[null,null,null,null,null,null,null,null,null,null,null,null,"Total: ",{"$f":"SUM(INDIRECT(\"N\"&'Sheet Parameters'!B8&\":N\"&'Sheet Parameters'!B9))","v":0}]
[]
[]
["CM / FSR USE ONLY"]
["CM User",{"$f":"IF(ISERROR(VLOOKUP(\"customer.master@jmsmucker.com\",Approval!C:G,5,FALSE)),\"\",VLOOKUP(\"customer.master@jmsmucker.com\",Approval!C:G,5,FALSE))","v":""},"FSR User"]
["CM Date Received ",{"$f":"IF(ISERROR(OFFSET(INDEX(Approval!C:C,MATCH(\"customer.master@jmsmucker.com\",Approval!C:C,0)),-1,3)),\"\",DATEVALUE(TEXT(OFFSET(INDEX(Approval!C:C,MATCH(\"customer.master@jmsmucker.com\",Approval!C:C,0)),-1,3),\"MM/DD/YYYY\")))","v":""},"FSR Date Rcvd",{"$f":"IF(ISERROR(VLOOKUP(\"customer.master@jmsmucker.com\",Approval!C:G,4,FALSE)),\"\",DATEVALUE(TEXT(VLOOKUP(\"customer.master@jmsmucker.com\",Approval!C:G,4,FALSE),\"MM/DD/YYYY\")))","v":""}]
[null,null,"Ship From"]
["Project Number",null,"Ship To"]
[null,null,"ETA"]

{"sheet":"MAI Upload","index":1,"n_rows":28,"n_cols":2,"rows_kept":28,"cut":false,"hidden":true,"merged":[]}
[1,{"$f":"'Equipment Request'!C4","v":"00:00:00"}]
[2,{"$f":"'Equipment Request'!C6","v":0}]
[3,{"$f":"'Equipment Request'!C7","v":0}]
[4,{"$f":"'Equipment Request'!C8","v":0}]
[5,{"$f":"'Equipment Request'!C9","v":0}]
[6,{"$f":"'Equipment Request'!C10","v":0}]
[7,{"$f":"'Equipment Request'!C11","v":0}]
[8,{"$f":"'Equipment Request'!C12","v":0}]
[9,{"$f":"'Equipment Request'!C14","v":0}]
[10,{"$f":"'Equipment Request'!C15","v":0}]
[11,{"$f":"'Equipment Request'!C16","v":0}]
[12,{"$f":"'Equipment Request'!C18","v":0}]
[13,{"$f":"'Equipment Request'!C19","v":0}]
[14,{"$f":"'Equipment Request'!C20","v":0}]
[15,{"$f":"'Equipment Request'!J4","v":0}]
[16,{"$f":"'Equipment Request'!J12","v":0}]
[17,{"$f":"'Equipment Request'!M4","v":0}]
[18,{"$f":"'Equipment Request'!C24","v":0}]
[19,{"$f":"'Equipment Request'!H21","v":0}]
[20,{"$f":"'Equipment Request'!B46","v":""}]
[21,{"$f":"'Equipment Request'!B47","v":""}]
[22,{"$f":"'Equipment Request'!D46","v":0}]
[23,{"$f":"'Equipment Request'!D47","v":""}]
[24,{"$f":"'Equipment Request'!D48","v":0}]
[25,{"$f":"'Equipment Request'!D49","v":0}]
[26,{"$f":"'Equipment Request'!D50","v":"00:00:00"}]
[27,{"$f":"'Equipment Request'!B49","v":0}]
[30,{"$f":"'Equipment Request'!C23","v":0}]

{"sheet":"Upload Mapping Key","index":2,"n_rows":30,"n_cols":11,"rows_kept":30,"cut":false,"hidden":true,"merged":[]}
[1,"Date Initiated"]
[2,"Customer Number"]
[3,"Mailing/corporation Name"]
[4,"Address Line 1"]
[5,"Address Line 2 "]
[6,"City"]
[7,"State"]
[8,"Zip"]
[9,"Contact name"]
[10,"Phone"]
[11,"Customer email address"]
[12,"Additional Contact Name/Title "]
[13,"Additional Phone # "]
[14,"Additional E-mail Address "]
[15,"Contract Type"]
[16,"Sales TSM#"]
[17,"Purchase Order No"]
[18,"Install Required "]
[19,"Notes"]
[20,"CM User"]
[21,"CM Date Received "]
[22,"ID"]
[23,"Date Rcvd"]
[24,"Ship From Loc Number"]
[25,"Ship to Loc Number "]
[26,"Request Date"]
[27,"Project Number"]
[30,"Placement Reason"]
[28,"Equip","Item Description","Qty","Site Ready: ","Floor/Location","Nema Plug Receptacle","H2O Temp-Supply-Shut off","Electric Location:","DE Ratio","Confirmed"]
[29,"Ancillaries (Expendable)","Item Description","Qty (Expendable)"]

{"sheet":"Product List","index":3,"n_rows":223,"n_cols":5,"rows_kept":223,"cut":false,"hidden":false,"merged":[]}
["TYPE","BRAND","CASE_UPC","DESCRIPTION","Price list date: 8-31-2015"]
["ROAST & GROUND","FOLGERS",2550063018,"FG 1.5 OZ DEC TRDTNL RST 42 CT"]
["ROAST & GROUND","FOLGERS",2550063011,"FG 1.5OZ TRDTNL RST 128CT"]
["ROAST & GROUND","FOLGERS",2550063006,"FG 2 OZ TRDTNL ROAST URN 42 CT"]
["ROAST & GROUND","FOLGERS",2550063005,"FG 2 OZ TRDTNL RST URN 128 CT"]
["ROAST & GROUND","FOLGERS",2550063012,"FG 2OZ DEC TRDTNL RST 42CT"]
["ROAST & GROUND","FOLGERS",2550063004,"FG 2.5OZ TRDTNL RST URN 128 CT"]
["ROAST & GROUND","FOLGERS",2550063013,"FG 1.5OZ TRDTNL RST F/P 128CT"]
["ROAST & GROUND","FOLGERS",2550063014,"FG 1.5OZ DEC TRD RST F/P 42CT"]
["ROAST & GROUND","FOLGERS",2550063015,"FG 2OZ TRDTNL RST F/P 128CT"]
["ROAST & GROUND","FOLGERS",2550063001,"FG 8 OZ TRDTNL ROAST URN 48 CT"]
["ROAST & GROUND","FOLGERS",2550063008,"FG 8 OZ DEC TRDTNL ROAST 48 CT"]
["ROAST & GROUND","FOLGERS",2550063019,"FG 10OZ DEC TRDTL RST URN 24CT"]
["ROAST & GROUND","FOLGERS",2550063003,"FG 12 OZ TRDTNL RST URN 24 CT"]
["ROAST & GROUND","FOLGERS",2550063002,"FG 14 OZ TRDTNL RST URN 24 CT"]
["ROAST & GROUND","FOLGERS",2550063016,"FG 14OZ DEC TRDTL RST URN 24CT"]
["ROAST & GROUND","FOLGERS",2550063010,"FG 2 LB GR TRDTNL ROAST 12 CT"]
["ROAST & GROUND","FOLGERS",2550063007,"FG 2LB DEC GR TRDTNL RST 12 CT"]
["ROAST & GROUND","FOLGERS",2550063017,"FG 5LB WB TRDTNL RST"]
["ROAST & GROUND","FOLGERS",2550006099,"FG 0.9 OZ CAFF REG FRACTION"]
["ROAST & GROUND","FOLGERS",2550006100,"FG 1.05 OZ CAFF REG FRACTION"]
["ROAST & GROUND","FOLGERS",2550006142,"FG 0.9 OZ CAFF COLMBN FRACTION"]
["ROAST & GROUND","FOLGERS",2550006145,"FG 1.05OZ CAFF COLMBN FRACTION"]
["ROAST & GROUND","FOLGERS",2550006474,"FG 1.75OZ CAF GMTSPR 100CT"]
["ROAST & GROUND","FOLGERS",2550006442,"FG 1.75OZ CAFF CLMBN 100CT"]
["ROAST & GROUND","FOLGERS",2550006215,"FG 0.9 OZ DECAFF FRACTION"]
["ROAST & GROUND","FOLGERS",2550006216,"FG 1.05 OZ DECAFF FRACTION"]
["ROAST & GROUND","FOLGERS",2550006114,"FG 0.9 OZ CAFF REG FLTPK"]
["ROAST & GROUND","FOLGERS",2550006115,"FG 1.05OZ CAFF REG FLTPK"]
["ROAST & GROUND","FOLGERS",2550006900,"FG 0.9OZ REG SP RST FLTPK"]
["ROAST & GROUND","FOLGERS",2550006136,"FG 0.9 OZ DECAFF FLTPK"]
["ROAST & GROUND","FOLGERS",2550006138,"FG 1.05 OZ DECAFF FLTPK"]
["ROAST & GROUND","FOLGERS",2550006106,"FG 2.7 OZ CAFF REG GEMINI"]
["ROAST & GROUND","FOLGERS",2550006102,"FG 5.4 OZ CAFF REG URN"]
["ROAST & GROUND","FOLGERS",2550006103,"FG 6.3 OZ CAFF GR REG URN"]
["ROAST & GROUND","FOLGERS",2550006220,"FG 2.7 OZ DECAFF GEMINI"]
["ROAST & GROUND","FOLGERS",2550006218,"FG 5.4 OZ DECAFF URN"]
["ROAST & GROUND","FOLGERS",2550006219,"FG 6.3 OZ DECAFF URN"]
["ROAST & GROUND","FOLGERS",2550006105,"FG 44 OZ WB REG - BULK "]
["ROAST & GROUND","FOLGERS",2550006149,"FG 44OZ CAFF GR REG - BULK "]
["ROAST & GROUND","MILLSTONE",7510164523,"MT 1.75 OZ CAF HZLNT CRM 40CT "]
["ROAST & GROUND","MILLSTONE",7510164102,"MT 1.75OZ CAFF 100% COLMB 40CT "]
["ROAST & GROUND","MILLSTONE",7510164402,"MT 1.75 OZ DEC COLOMBIAN 40CT "]
["ROAST & GROUND","MILLSTONE",7510100283,"MT 1.75OZ CAFF BRKFST BLD 40CT "]
["ROAST & GROUND","MILLSTONE",7510164321,"MT 1.75OZ FS CAF FOG LFTR 40CT "]
["ROAST & GROUND","MILLSTONE",7510164384,"MT 1.75 OZ CAFF MIDNIGHT 40CT "]
["ROAST & GROUND","MILLSTONE",7510164212,"MT 1.75 OZ CAFF FR RST 40CT "]
["ROAST & GROUND","MILLSTONE",7510100360,"MT 32 OZ CAFF WB BFAST BLN BG "]
["ROAST & GROUND","MILLSTONE",7510122102,"MT 32OZ CAF WB COLMBN SUPR "]
["ROAST & GROUND","JAVA COAST",5150067000,"JC 2.5 OZ VIENNA ROAST 42CT"]
["ROAST & GROUND","JAVA COAST",5150067001,"JC 2.5 OZ CLMBN SUPREMO 42 CT"]
["ROAST & GROUND","JAVA COAST",5150067002,"JC 3 OZ VANILLA CREAM 46CT"]
["ROAST & GROUND","JAVA COAST",5150067026,"JC 3 OZ CLMBN SUPREMO 46CT"]
["ROAST & GROUND","JAVA COAST",5150067027,"JC 3 OZ DEC 100% CLMBN 46 CT"]
["ROAST & GROUND","JAVA COAST",5150067003,"JC 3 OZ VIENNA ROAST 46CT"]
["ROAST & GROUND","JAVA COAST"," 5150067004","JC 3 OZ FRENCH ROAST 46CT"]
["ROAST & GROUND","JAVA COAST",5150067005,"JC 3 OZ DECAF FRENCH RST 46CT"]
["ROAST & GROUND","JAVA COAST",5150067006,"JC 9 OZ COLOMBIAN SUPRMO 12 CT"]
["ROAST & GROUND","JAVA COAST",5150067007,"JC 9 OZ DECAF 100% CLMBN 12 CT"]
["ROAST & GROUND","JAVA COAST",5150067008,"JC 9 OZ VIENNA ROAST 12 CT"]
["ROAST & GROUND","JAVA COAST",5150067009,"JC 9 OZ FRENCH ROAST 12 CT"]
["ROAST & GROUND","JAVA COAST",5150067010,"JC 9 OZ DECAF FRENCH RST 12 CT"]
["ROAST & GROUND","JAVA COAST",5150067011,"JC 2 LB WB VIENNA ROAST 12 CT"]
["ROAST & GROUND","JAVA COAST",5150067012,"JC 2 LB GR VIENNA ROAST 12 CT"]
["ROAST & GROUND","JAVA COAST",5150067028,"JC 2 LB WB CLMBN SUPREMO 6CT"]
["ROAST & GROUND","JAVA COAST",5150067014,"JC 2LB WB DECAF 100% CLMBN 6CT"]
["ROAST & GROUND","JAVA COAST",5150067029,"JC 2 LB WB FRENCH ROAST 6 CT"]
["ROAST & GROUND","JAVA COAST",5150067013,"JC 2 LB WB DECAF FRNCH RST 6CT"]
["ROAST & GROUND","JAVA COAST",5150067030,"JC 2 LB WB ESPRESSO 6 CT"]
["ROAST & GROUND","CAFÉ BUSTELO",7447101014,"BS 2OZ REGULAR FRAC PACK 30CT"]
["ROAST & GROUND","CAFÉ BUSTELO",7447111244,"BS 2OZ DECAF FRAC PACK 30CT"]
["ROAST & GROUND","CAFÉ BUSTELO",7447111250,"BS 6OZ SATELLITE PACK 12CT"]
["ROAST & GROUND","CAFÉ BUSTELO",7447111256,"BS 6OZ SATELLITE PACK DECAF 12CT"]
["ROAST & GROUND","CAFÉ BUSTELO",7447111332,"BS 12OZ URN 12CT"]
["ROAST & GROUND","CAFÉ BUSTELO",7447111395,"BS 12OZ URN DECAF 12CT"]
["ROAST & GROUND","CAFÉ BUSTELO",7447101800,"BS 32 OZ WHOLE BEAN SUPREME"]
["ROAST & GROUND","PILON",7447120100,"PI GOURMET 32 OZ WHOLE BEAN"]
["ROAST & GROUND","DOUWE EGBERTS",7046115024,"DE 1.5 OZ RED RIBBON 42 CT "]
["ROAST & GROUND","DOUWE EGBERTS",7046104641,"DE 2 OZ RED RIBBON 42 CT "]
["ROAST & GROUND","DOUWE EGBERTS",7046104647,"DE 2 OZ DEC RED RIBBON 42 CT "]
["ROAST & GROUND","DOUWE EGBERTS",7046104500,"DE 2.5 OZ RED RIBBON 42CT "]
["ROAST & GROUND","DOUWE EGBERTS",7046110488,"DE 2.5 OZ DEC RED RIBBON 128CT "]
["ROAST & GROUND","DOUWE EGBERTS",7046104644,"DE 7 OZ RED  RIBBON BL 48 CT "]
["ROAST & GROUND","DOUWE EGBERTS",7046104645,"DE 14 OZ RED RIBBON 24 CT"]
["ROAST & GROUND","DOUWE EGBERTS",7046104654,"DE 14OZ DEC RED RIBBON LT 24CT"]
["ROAST & GROUND","DOUWE EGBERTS",7046111064,"DE 2 LB WB RED RIBBON 12 CT "]
["ROAST & GROUND","DOUWE EGBERTS",7046111312,"DE 2 LB WB DEC RED RIBBN 12 CT "]
["ROAST & GROUND","DOUWE EGBERTS",7046125833,"DE 2 LB WB RED RIBBN VND 12 CT "]
["ROAST & GROUND","DOUWE EGBERTS",7046100646,"DE 2 LB RED RIBBON VEND 12 CT"]
["ROAST & GROUND","DOUWE EGBERTS",7046115297,"DE 1.25 OZ 100% CLMBN 42 CT"]
["ROAST & GROUND","DOUWE EGBERTS",7046171126,"DE 1.5 OZ FR ROAST 42 CT"]
["ROAST & GROUND","DOUWE EGBERTS",7046114423,"DE 1.5 OZ 100% CLMBN 42 CT"]
["ROAST & GROUND","DOUWE EGBERTS",7046104848,"DE 2 OZ FRENCH ROAST 42 CT"]
["ROAST & GROUND","DOUWE EGBERTS",7046104859,"DE 2 OZ DEC 100% CLMBN 128 CT"]
["ROAST & GROUND","DOUWE EGBERTS",7046104860,"DE 2 OZ CLMBN REGL RST 128 CT"]
["ROAST & GROUND","DOUWE EGBERTS",7046106420,"DE 2 OZ 100% CLMBN W/F 42"]
["ROAST & GROUND","DOUWE EGBERTS",7046168064,"DE 2.25 OZ IRISH CREAM 24 CT"]
["ROAST & GROUND","DOUWE EGBERTS",7046168114,"DE 2.25 OZ CHOC MAC NUT 24 CT"]
["ROAST & GROUND","DOUWE EGBERTS",7046168122,"DE 2.25 OZ HAZELNUT 24 CT"]
["ROAST & GROUND","DOUWE EGBERTS",7046103180,"DE 2.25 OZ HAZELNUT 128 CT"]
["ROAST & GROUND","DOUWE EGBERTS",7046168189,"DE 2.25 OZ CINNAMON 24 CT"]
["ROAST & GROUND","DOUWE EGBERTS",7046104709,"DE 2.5OZ VANILLA FANTASIA 24CT"]
["ROAST & GROUND","DOUWE EGBERTS",7046104482,"DE 2.5 OZ BAKE SHOP BL 42 CT"]
["ROAST & GROUND","DOUWE EGBERTS",7046104518,"DE 2.5 OZ CLMBN DARK RST 42 CT"]
["ROAST & GROUND","DOUWE EGBERTS",7046104519,"DE 2.5 OZ 10% KONA BL 42 CT"]
["ROAST & GROUND","DOUWE EGBERTS",7046104867,"DE 2.5 OZ GLDN VINTAGE 128 CT"]
["ROAST & GROUND","DOUWE EGBERTS",7046143729,"DE 2.5 OZ FR ROAST 128 CT"]
["ROAST & GROUND","DOUWE EGBERTS",7046139218,"DE 2.75 OZ JAVALERT 42 CT"]
["ROAST & GROUND","DOUWE EGBERTS",7046104868,"DE 3 OZ GOLDEN VINTAGE 128 CT"]
["ROAST & GROUND","DOUWE EGBERTS",7046100756,"DE 7 OZ GOLDEN VINTAGE 48CT"]
["ROAST & GROUND","DOUWE EGBERTS",7046104492,"DE 7.5 OZ CLMBN DRK RST 16 CT"]
["ROAST & GROUND","DOUWE EGBERTS",7046104875,"DE 8.5 OZ MJ FR ROAST 48CT"]
["ROAST & GROUND","DOUWE EGBERTS",7046104885,"DE 12 OZ MJ FRENCH ROAST 24 CT"]
["ROAST & GROUND","DOUWE EGBERTS",7046160171,"DE 14 OZ GOLDEN VINTAGE 24 CT"]
["ROAST & GROUND","DOUWE EGBERTS",7046127060,"DE 4 LB WB FRENCH ROAST 5 CT "]
["ROAST & GROUND","DOUWE EGBERTS",7046103152,"DE 2LB WB 100% COL RGL RST 12C"]
["ROAST & GROUND","DOUWE EGBERTS",7046100961,"DE 1.25 OZ DECHOUSE BL 42 CT "]
["ROAST & GROUND","DOUWE EGBERTS",7046160528,"DE 1.5 OZ HOUSE BL 42CT "]
["ROAST & GROUND","DOUWE EGBERTS",7046144212,"DE 1.5OZ DECAF HOUSE BLND 42CT "]
["ROAST & GROUND","DOUWE EGBERTS",7046141485,"DE 1.5 OZ HOUSE  BL 128CT "]
["ROAST & GROUND","DOUWE EGBERTS",7046104843,"DE 2 OZ HOUSE BLEND 42CT "]
["ROAST & GROUND","DOUWE EGBERTS",7046104808,"DE 2 OZ DECAF HOUSE BLEND 42CT "]
["ROAST & GROUND","DOUWE EGBERTS",7046104844,"DE 2 OZ HOUSE BLEND 128CT "]
["ROAST & GROUND","DOUWE EGBERTS",7046104798,"DE 1.5OZ HOUSE BLEND F/P 128CT "]
["ROAST & GROUND","DOUWE EGBERTS",7046104807,"DE 1.5OZ DEC HSE BLND F/P 42CT "]
["ROAST & GROUND","DOUWE EGBERTS",7046104809,"DE 2 OZ HOUSE BLEND F/P 128CT "]
["ROAST & GROUND","DOUWE EGBERTS",7046140400,"DE 8 OZ HOUSE BL URN 48 CT"]
["ROAST & GROUND","DOUWE EGBERTS",7046142851,"DE 8 OZ DECAF HOUSE BL 48  CT"]
["ROAST & GROUND","DOUWE EGBERTS",7046160489,"DE 12 OZ HOUSE BL URN 24 CT"]
["ROAST & GROUND","DOUWE EGBERTS",7046160569,"DE 12 OZ DECAF HOUSE BL 24 CT"]
["ROAST & GROUND","DOUWE EGBERTS",7046160490,"DE 14 OZ HOUSE BL URN 24 CT"]
["ROAST & GROUND","DOUWE EGBERTS",7046160570,"DE 14 OZ DECAF HOUSE BL 24 CT"]
["ROAST & GROUND","DOUWE EGBERTS",7046160267,"DE 2 LB HOUSE BL 12 CT "]
["ROAST & GROUND","DOUWE EGBERTS",7046142810,"DE 2 LB DECAF HOUSE BL 12 CT "]
["ROAST & GROUND","DOUWE EGBERTS",7046140954,"DE 5 LB WB HOUSE BL 6 CT "]
["ROAST & GROUND","DOUWE EGBERTS",7046112468,"DE 1.5 OZ CLASSIC BL 42 CT "]
["ROAST & GROUND","DOUWE EGBERTS",7046162463,"DE 1.5OZ DEC CLASSIC BL 42 CT "]
["ROAST & GROUND","DOUWE EGBERTS",7046104854,"DE 1.5 OZ CLASSIC BLEND 128 CT "]
["ROAST & GROUND","DOUWE EGBERTS",7046104768,"DE 2 OZ CLASSIC BLEND 42CT "]
["ROAST & GROUND","DOUWE EGBERTS",7046104852,"DE 2 OZ CLASSIC BLEND 128 CT "]
["ROAST & GROUND","DOUWE EGBERTS",7046103467,"DE 2.5 OZ CLASSIC BLEND 128CT "]
["ROAST & GROUND","DOUWE EGBERTS",7046104871,"DE 6 OZ DEC CLASSIC BLEND 48CT "]
["ROAST & GROUND","DOUWE EGBERTS",7046104872,"DE 6 OZ CLASSIC BLEND 48CT "]
["ROAST & GROUND","DOUWE EGBERTS",7046104772,"DE 12 OZ CLASSIC BLEND 24CT"]
["ROAST & GROUND","DOUWE EGBERTS",7046104813,"DE 14 OZ CLASSIC BLEND 24"]
["ROAST & GROUND","DOUWE EGBERTS",7046173734,"DE 14 OZ DEC CLASSIC BL 24 CT"]
["ROAST & GROUND","DOUWE EGBERTS",7046111007,"DE 2 LB WB CLASSIC BL 12 CT "]
["ROAST & GROUND","DOUWE EGBERTS",7046106148,"DE 2 LB VEND BLEND 12 CT "]
["ROAST & GROUND","DOUWE EGBERTS",7046107419,"DE 2 LB GR CLASSIC BLEND 12 CT "]
["ROAST & GROUND","DOUWE EGBERTS",7046104902,"DE 5 LB WB CLASSIC BLEND 6 CT "]
["ROAST & GROUND","DOUWE EGBERTS",7046162704,"DE 2 OZ MJ ANDS MNTN BL 128 CT "]
["ROAST & GROUND","DOUWE EGBERTS",7046162743,"DE 12 OZ MJ ANDS MNTN BL 24 CT"]
["ROAST & GROUND","GOOD ORIGINS",7046134715,"GO 2.5 OZ 100% COL 42 CT"]
["ROAST & GROUND","GOOD ORIGINS",7046134716,"GO 2.5OZ DEC MEX ALT ORG 42 CT"]
["ROAST & GROUND","GOOD ORIGINS",7046145402,"GO 3 OZ MEX ALTURA ORG 42 CT"]
["ROAST & GROUND","GOOD ORIGINS",7046145405,"GO 2 LB WB MEX ALTURA ORG 6 CT"]
["ROAST & GROUND","MARYLAND CLUB",3269755000,"MD 7 OZ DAILY BLEND 48 CT"]
["LIQUID","FOLGERS",2550062201,"FG 2L SIGNATURE BLEND"]
["LIQUID","FOLGERS",2550062202,"FG 1.25L SIGNATURE BLEND"]
["LIQUID","FOLGERS",2550062203,"FG 2 L DARK ROAST"]
["LIQUID","FOLGERS",2550062204,"FG 1.25 L DARK ROAST"]
["LIQUID","FOLGERS",2550062205,"FG 2 L 100% COLOMBIAN"]
["LIQUID","FOLGERS",2550062206,"FG 1.25 L 100% COLOMBIAN"]
["LIQUID","FOLGERS",2550062207,"FG 2 L 100% COLOMBIAN DECAF"]
["LIQUID","FOLGERS",2550062208,"FG 1.25 L 100% COLOMBIAN DECAF"]
["LIQUID","FOLGERS",2550062209,"FG 1.25 L SPECIAL RSRV 2 CT"]
["LIQUID","FOLGERS",2550062210,"FG 1.25 L DEC SPCL RSRV 2 CT"]
["LIQUID","FOLGERS",2550062211,"FG 2 L SPECIAL RESERVE 2 CT"]
["LIQUID","FOLGERS",2550062212,"FG 2 L DEC SPECIAL RSRV 2 CT"]
["LIQUID","KAYO",7046100101,"KO 1.25L ULTRA-FILTRD MILK 6CT"]
["LIQUID","KAYO",7046100100,"KO 2L ULTRA-FILTERED MILK 4 CT"]
["LIQUID","KAYO",7046139597,"KO 2 LT BELGUIM CHOCOLATE"]
["LIQUID","DOUWE EGBERTS",7046139787,"DE 1.25LT GO DEC 100% COL 2 CT"]
["LIQUID","DOUWE EGBERTS",7046139789,"DE 1.25LT GD ORG 100% COL 2 CT"]
["LIQUID","DOUWE EGBERTS",7046139997,"DE 1.25 LT PRESTIGE 2 CT"]
["LIQUID","DOUWE EGBERTS",7046144199,"DE 1.25 LT DECAF PRESTIGE 2 CT"]
["LIQUID","DOUWE EGBERTS",7046139577,"DE 1.25LT DECF 100% CLMBN 2 CT"]
["LIQUID","DOUWE EGBERTS",7046139562,"DE 1.25LT EURO DARK ROAST 2 CT"]
["LIQUID","DOUWE EGBERTS",7046139565,"DE 1.25 LT 100% COLOMBIAN 2 CT"]
["LIQUID","DOUWE EGBERTS",7046139791,"DE 2 LT GD ORIGN 100% COL 2 CT"]
["LIQUID","DOUWE EGBERTS",7046139995,"DE 2 LT DEC PRESTIGE 2 CT"]
["LIQUID","DOUWE EGBERTS",7046139580,"DE 2 LT GOURMET BL 2 CT"]
["LIQUID","DOUWE EGBERTS",7046139585,"DE 2 LT EURO DARK ROAST 2 CT"]
["LIQUID","DOUWE EGBERTS",7046139596,"DE 2 LT KONA BL 2 CT"]
["LIQUID","DOUWE EGBERTS",7046139594,"DE 2 LT PRESTIGE 2 CT"]
["LIQUID","DOUWE EGBERTS",7046139592,"DE 2 LT 100% COLOMBIAN 2 CT"]
["LIQUID","DOUWE EGBERTS",7046139593,"DE 2 LT DEC 100% COL 2 CT"]
["CAPPUCCINO/COCOA","FOLGERS",2550006334,"FG 2LB FRENCH VAN CAPP 6CT"]
["CAPPUCCINO/COCOA","FOLGERS",2550006335,"FG 2LB ENGLISH TOFFEE CAPP 6CT"]
["CAPPUCCINO/COCOA","FOLGERS",2550006336,"FG 2LB ORIGINAL CAPP 6CT"]
["CAPPUCCINO/COCOA","FOLGERS",2550006338,"FG 2LB WHITE CHOC CRML CAP 6CT"]
["CAPPUCCINO/COCOA","FOLGERS",2550006339,"FG 2LB MOCHA CAFE CAPP 6CT"]
["CAPPUCCINO/COCOA","FOLGERS",2550006340,"FG 2LB CHOC SUPRM COCOA 6CT"]
["CAPPUCCINO/COCOA","FOLGERS",2550006341,"FG 1LB SUGAR FREE FRENCH VANILLA  CAPP 6CT"]
["CAPPUCCINO/COCOA","FOLGERS",2550006330,"FG 2 LB FT FR FR VAN CAPP 6 CT"]
["CAPPUCCINO/COCOA","FOLGERS",2550006331,"FG 2 LB HAZELNUT CAPP 6 CT"]
["CAPPUCCINO/COCOA","FOLGERS",2550006332,"FG 2LB CIMMN VAN NUT CAPP 6 CT"]
["CAPPUCCINO/COCOA","FOLGERS",2550006344,"FG 2LB PEACHES & CREAM CAPP 6CT"]
["CAPPUCCINO/COCOA","FOLGERS",2550006345,"FG 2LB SWEET CUPCAKE CAPP 6CT"]
["CAPPUCCINO/COCOA","FOLGERS",2550006333,"FG 1 LB FROTHY CAPP CRMR 12 CT"]
["CAPPUCCINO/COCOA","BUTTERNUT",3269741281,"BN 0.53 OZ NO SUG COCA  6 CT "]
["CAPPUCCINO/COCOA","BUTTERNUT",3269741316,"BN 50 OZ COCOA PP 300 CT "]
["CAPPUCCINO/COCOA","KAYO",7046155137,"KO 1.50 LB LT VND COCOA 12 CT "]
["CAPPUCCINO/COCOA","KAYO",7046135600,"KO 2 LB REG VEND COCOA 12 CT "]
["CAPPUCCINO/COCOA","KAYO",7046135626,"KO 2 LB SWISS VEND COCOA 12 CT "]
["CAPPUCCINO/COCOA","KAYO",7046135782,"KO 2 LB INSTANT COCOA 6 CT "]
["TEA","MARYLAND CLUB",3269732540,"Md 1 Oz Dec Icd Tea Filter Pack 48 Ct"]
["TEA","MARYLAND CLUB",3269714043,"Md 3 Oz Select Iced Tea Filter Pack 24 Ct"]
["TEA","MARYLAND CLUB",3269714042,"Md 4Oz Sl Icd Tea Filter Pack 24"]
["TEA","MARYLAND CLUB",7046100112,"Md 4 Oz Dec Icd T Filter Pack 24 Ct"]
["TEA","MARYLAND CLUB",3269714046,"MD 8 OZ DECAF BLACK TEA 5/100 CT "]
["TEA","MARYLAND CLUB",3269714047,"MD 8 OZ ORG PEK T ENV 10/100 CT "]
["TEA","PARADISE",9029700101,"Pd 1 Oz Org Trop Icd Tea 50 Ct"]
["TEA","PARADISE",9029700105,"Pd 3 Oz Chna Blck Icd Tea 25Ct"]
["TEA","PARADISE",9029700104,"Pd 3 Oz Orgl Trop Icd Tea 25 C"]
["TEA","PICKWICK",7046100111,"Pw 4 Oz Cl Blck Icd Tea 18 Ct"]
["TEA","PICKWICK",7046112506,"Pw 4 Oz Rasp H Iced Tea 18 Ct"]
["TEA","PICKWICK",7046139865,"PW 1.5GA INFSIA RASP ICD T 2CT "]
["TEA","PICKWICK",7046139868,"PW 1.5GA INFUS SWT BK I T 2 CT "]
["TEA","PICKWICK",7046139870,"PW 1.5GA USW BL ICE TEA 2 CT"]
["TEA","TENDERLEAF",2550006012,"TL TEA FP PREMIUM ICED 24/3OZ "]
["TEA","TENDERLEAF",2550006460,"TL TEA PREMIUM ICED 96/1 CT "]
["TEA","TENDERLEAF",2550006461,"TL TEA PREMIUM ICED 24/3 OZ "]

{"sheet":"Equipment List","index":4,"n_rows":114,"n_cols":21,"rows_kept":114,"cut":false,"hidden":false,"merged":[]}
["Catalog_ID","Category","Tag Type","Section","Sub-section","Class","Manufacturer","Model_Type","Price","Sub_Item#","PROP ","SUB","Graphics_Model","LEAD TIME","APP",null,"REFURB","SEQ.","Voltage","Amps","Price list date: 2-22-2016"]
[99166,"R&G","Tagged","POUR-OVER GLASS DECANTER (BOTTLE) BREWERS ",null,null,"WILBUR CURTIS CO, INC.","SCCAFE1DB10A000  -  120V/15A JMS POUROVER 1 STATION BOTTLE BREWER",186.15,null,"C00","C11","120-15",10,"A",null,"Y",2,120,15]
[99167,"R&G","Tagged","POUR-OVER GLASS DECANTER (BOTTLE) BREWERS ",null,null,"WILBUR CURTIS CO, INC.","SCCAFE2DB10A000  -  120V/15A JMS POUROVER 2 STATION BOTTLE BREWER",228.85,null,"C00","C20","120-15",10,"A",null,"Y",3,120,15]
[99169,"R&G","Tagged","POUR-OVER GLASS DECANTER (BOTTLE) BREWERS ",null,null,"WILBUR CURTIS CO, INC.","SCCAFE3DB10A000  -  120V/15A JMS POUROVER 3 (2 LOWER) STATION BOTTLE BREWER",262.2,null,"C00","C32","120-15",10,"A",null,"Y",4,120,15]
[92395,"R&G","Tagged","POUR-OVER GLASS DECANTER (BOTTLE) BREWERS ",null,null,"BUNN","VP17-1  -  1 BURNER POUROVER S/S13300.0001",247.24999999999997,null,"C00","C11","120-15",15,"B",null,"Y",5,120,15]
[95836,"R&G","Tagged","POUR-OVER GLASS DECANTER (BOTTLE) BREWERS ",null,null,"BUNN","VP17-2  -  2 BURNER POUROVER W/ONE ON TOP 13300.0045",263.34999999999997,null,"C00","C20","120-15",15,"B",null,"Y",6,120,15]
[94524,"R&G","Tagged","POUR-OVER GLASS DECANTER (BOTTLE) BREWERS ",null,null,"BUNN","VP17-3  -  3 BURNER POUROVER (LOW PROFILE) 13300.0046",293.25,null,"C00","C32","120-15",15,"B",null,"Y",7,120,15]
[90504,"R&G","Tagged","POUR-OVER GLASS DECANTER (BOTTLE) BREWERS ",null,null,"BUNN","VP17-3 TOP  -  3-BURNER POUROVER TOP WARMERS 13300.0004",277.14999999999998,null,"C00","C32","120-15",15,"B",null,"Y",8,120,15]
[94656,"R&G","Tagged","POUR-OVER GLASS DECANTER (BOTTLE) BREWERS ",null,null,"BUNN","VPR  -  120V/15A 1 LOW/1 UPPER WARMER POUROVER   - 33200.0000",240.35,null,"C00","C35","120-15",15,"B",null,"Y",9,120,15]
[94649,"R&G","Tagged","POUR-OVER GLASS DECANTER (BOTTLE) BREWERS ",null,null,"BUNN","VPS  -  120V/15A 2 LOW/1 UPPER WARMER POUROVER - 04275.0031 (w/plastic funnel)",281.75,null,"C00","C25","120-15",15,"B",null,"Y",10,120,15]
[90429,"R&G","Tagged","AUTO (WATERLINE) BOTTLE BREWERS ",null,null,"WILBUR CURTIS CO, INC.","SCALP3GT61A000  -  120/220V DUAL VOLTAGE  SC/CUR 3-STATION DECANTER BREWER 2TOP/1BOTTOM",564.65,null,"A00","A30","Dual Voltage 20-20",10,"A",null,"Y",12,"M",20]
[90440,"R&G","Tagged","AUTO (WATERLINE) BOTTLE BREWERS ",null,null,"WILBUR CURTIS CO, INC.","SCALP3GTL61A000  -  120/220V DUAL VOLTAGE  SC/CUR 3-STATION DECANTER BREWER - LEFT LOW PROFILE",616.4,null,"A00","A32","Dual Voltage 20-20",10,"A",null,"Y",13,"M",20]
[90437,"R&G","Tagged","AUTO (WATERLINE) BOTTLE BREWERS ",null,null,"WILBUR CURTIS CO, INC.","SCALP3GTR61A000  -  120/220V DUAL VOLTAGE  SC/CUR 3-STATION DECANTER BREWER - RIGHT LOW PROFILE",616.4,null,"A00","A32","Dual Voltage 20-20",10,"A",null,"Y",14,"M",20]
[90443,"R&G","Tagged","AUTO (WATERLINE) BOTTLE BREWERS ",null,null,"WILBUR CURTIS CO, INC.","SCALP5GT61A000  -  120-220V DUAL VOLTAGE SC/CUR 5-STATION DECANTER BREWER - RIGHT/LEFT LOW PROFILE - 120/220V",715.3,null,"A00","A53","Dual Voltage 20-20",10,"A",null,"Y",15,"M",20]
[90759,"R&G","Tagged","AUTO (WATERLINE) BOTTLE BREWERS ",null,null,"WILBUR CURTIS CO, INC.","SCALP6GTN61A000  -  120/220V DUAL VOLTAGE  DECANTER BREWER - 6 STN. INLINE NARROW",1256.375,null,"A00","A63","Dual Voltage 20-20",10,"A",null,"Y",16,"M",20]
[99127,"R&G","Tagged","AUTO (WATERLINE) BOTTLE BREWERS ",null,null,"BUNN","CWTF15-3  -  120V/15A 1 LOW/2 UP WARMERS AUTO W/FAUCET SS/BB 12950.0217 ",589.94999999999993,null,"A00","A30","120-15",15,"B",null,"Y",17,120,15]
[96800,"R&G","Tagged","AUTO (WATERLINE) BOTTLE BREWERS ",null,null,"BUNN","VLPF  -  120V/15A LOW-PROFILE AUTO 2 WARMER W/ FAUCET 07400.0005 ",573.84999999999991,null,"A00","A24","120-15",15,"B",null,"Y",18,120,15]
[121,"R&G","Tagged","AUTO (WATERLINE) BOTTLE BREWERS ",null,null,"BUNN","CWTF15-3 LF   -  120V/15A REFURB ONLY LOW PROFILE 3 LOWER LEFT WARMERS 12950.0298",588.79999999999995,null,"A00","A32","120-15",13,"C",null,"Y",19,120,15]
[56,"R&G","Tagged","AUTO (WATERLINE) BOTTLE BREWERS ",null,null,"BUNN","CWTF15-3 RIGHT  -  120V/15A REFURB ONLY LOW PROFILE 3 LOWER RIGHT WARMERS 12950.0428",588.22499999999991,null,"A00","A32","120-15",13,"C",null,"Y",20,120,15]
[99170,"R&G","Tagged","POUR-OVER AIRPOT/CARAFE BREWERS ",null,null,"WILBUR CURTIS CO, INC.","SCCAFE0AP10A000  -  120V/15A JMS POUROVER AIRPOT BREWER",301.29999999999995,null,"C00","C40","120-15",10,"A",null,"Y",22,120,15]
[93266,"R&G","Tagged","POUR-OVER AIRPOT/CARAFE BREWERS ",null,null,"WILBUR CURTIS CO, INC.","CAFEOPP10A000  -  120V/15A/1PH/2W+G/ 50/60HZ - POUROVER THERMAL CARAFE BREWER",210.45,null,"C00","C44","120-15",10,"A",null,"Y",23,120,15]
[90736,"R&G","Tagged","POUR-OVER AIRPOT/CARAFE BREWERS ",null,null,"WILBUR CURTIS CO, INC.","SCCAFE0AP10A002  -  120V/15A *w/FILTER PACK BB* JMS POUROVER PLUG & PLAY AIRPOT BREWER",308.2,null,"C00","C40","120-15",15,"B",null,"Y",25,120,15]
[90702,"R&G","Tagged","AUTO (WATERLINE) AIRPOT BREWERS ",null,null,"WILBUR CURTIS CO, INC.","SCD500GT61A000  -  120-208V DUAL VOLT DIGITAL SINGLE AIRPOT BRWR  DELUXE B.C.",586.5,null,"B00","B10","Dual Voltage 20-20",10,"A",null,"Y",27,"M",20]
[90451,"R&G","Tagged","AUTO (WATERLINE) AIRPOT BREWERS ",null,null,"WILBUR CURTIS CO, INC.","SCD1000GT10A000  -  208V/20A TWIN DIGITAL AIRPOT BRWR  DELUX B.C.",922.3,null,"B00","B21","220-20",10,"A",null,"Y",28,220,20]
[90625,"R&G","Tagged","AUTO (WATERLINE) AIRPOT BREWERS ",null,null,"WILBUR CURTIS CO, INC.","SCD1000GT61A000  -  120-220V/20A DUAL VOLTAGE - GT MODEL - DUAL AIRPOT BREWER W/FAUCET",994.74999999999989,null,"B00","B20","Dual Voltage 20-20",10,"A",null,"Y",29,"M",20]
[90283,"R&G","Tagged","AUTO (WATERLINE) AIRPOT BREWERS ",null,null,"WILBUR CURTIS CO, INC.","TLP12A  -  102V/15A LOW PROFILE SINGLE AIRPOT BREWER W/SS BREW BASKET",561.19999999999993,null,"B00","B12","120-15",10,"A",null,"Y",30,120,15]
[20,"R&G","Tagged","AUTO (WATERLINE) AIRPOT BREWERS ",null,null,"BUNN","CWTF15 APS  -  120V/15A REFURB ONLY AUTOMATIC AIRPOT BREWER 120V SF 23001.0017",583.04999999999995,null,"B00","B10","120-15",13,"C",null,"Y",31,120,15]
[90713,"R&G","Tagged","AUTO (WATERLINE) AIRPOT BREWERS ",null,null,"WILBUR CURTIS CO, INC.","D500GTH63A000  -  120-220V DUAL VOLTAGE G3 SINGLE X-TALL AIRPOT BREWER ",615.25,null,"B00","B61","Dual Voltage 20-20",15,"B",null,"Y",33,"M",20]
[98953,"R&G","Tagged","AUTO (WATERLINE) THERMAL CARAFE BREWERS ",null,null,"WILBUR CURTIS CO, INC.","SCD60GT61A000  -  120-220V DUAL VOLTAGE THERMAL ALPHAS, SNGL. STATION, NO WMRS & HIGHER CLEARANCE - APPOX.1/2-W/SS BC SUPR.",565.79999999999995,null,"B00","B40","Dual Voltage 20-20",10,"A",null,"Y",35,"M",15]
[93367,"R&G","Tagged","AUTO (WATERLINE) THERMAL CARAFE BREWERS ",null,null,"BUNN","CWTF TWIN-TC  -  TWIN THERMAL CARAFE BREWER 120/240V 23400.0047",1132.75,null,"B00","B41","220-30",15,"B",null,"Y",36,220,30]
[97295,"R&G","Tagged","AUTO (WATERLINE) HEATED SHUTTLE BREWERS ",null,null,"WILBUR CURTIS CO, INC.","SCGEM-120A-63  -  120-220V/20A REFURB ONLY (DISCONT.)CURTIS BRANDED SINGLE SHUTTLE BREWER W/FAUCET",676.19999999999993,null,"D00","D00","Dual Voltage 20-20",13,"C",null,"Y",38,"M",20]
[90617,"R&G","Tagged","AUTO (WATERLINE) HEATED SHUTTLE BREWERS ",null,null,"WILBUR CURTIS CO, INC.","SCGEMSS63A1000  -  120/220V 14/15A - G3, JMS-SPEC-SNGL.INTRLOCK SHTL, DUAL-V, 1600/2400W - 1PH 2/3W+G ",1092.5,null,"D00","D04","Dual Voltage 20-20",10,"A",null,"Y",39,"M",15]
[95778,"R&G","Tagged","AUTO (WATERLINE) HEATED SHUTTLE BREWERS ",null,null,"WILBUR CURTIS CO, INC.","SCGEM-12D-10  -  220V/30A REFURB ONLY (DISCONT.) CURTIS BRANDED DUAL SHUTTLE BREWER W/FAUCET",1334,null,"D00","D14","220-30",13,"C",null,"Y",40,220,30]
[93533,"R&G","Tagged","AUTO (WATERLINE) HEATED SHUTTLE BREWERS ",null,null,"WILBUR CURTIS CO, INC.","SCGEMTS10A1000  -  220V/30-30A/1PH - G3,  JMS SPEC DUAL INTERLOCK SHUTTLE W/3 BATCH SIZE W/FAUCET-5200/7600W",1588.1499999999999,null,"D00","D20","220-30",10,"A",null,"Y",41,220,30]
[99704,"R&G","Tagged","AUTO (WATERLINE) HEATED SHUTTLE BREWERS ",null,null,"WILBUR CURTIS CO, INC.","SCGEMTN10A1000  -  220V/30-40A/1PH - G3. NARROW JMS SPECS DUAL INTERLOCK SHUTTLE BERWER W/3 BATCH SIZES W/FAUCET",1885.9999999999998,null,"D00","D20","220-50",15,"B",null,"Y",43,220,40]
[90250,"R&G","Tagged","AUTO (WATERLINE) HEATED SHUTTLE BREWERS ",null,null,"WILBUR CURTIS CO, INC.","SCGEMTS16A1000  -  220V/17A/3PH -  TWIN G3, JMS SPCS - W/TRANSFORMER, 7600W/3W+G",1699.6999999999998,null,"D00","D20","220-20",15,"D",null,"N",44,220,20]
[93536,"R&G","Tagged","AUTO (WATERLINE) HEATED SHUTTLE BREWERS ",null,null,"WILBUR CURTIS CO, INC.","SCGEMTS19A1000  -  220V/30-40A/3PH - DUAL G3 - INTERLOCK SHUTTLE BREWER W/JMS SPECS - 7800W, 4W+G",1914.7499999999998,null,"D00","D20","220-30",15,"D",null,"N",45,220,30]
[100929,"R&G","Tagged","AUTO (WATERLINE) THERMAL SHUTTLE BREWERS ",null,null,"WILBUR CURTIS COMPANY INC","SCTP2S63A3100  -  120-208V/20-30A/1PH/ - BREWER ONLY SINGLE 1.5 GAL.CUR BRANDED THERMAL BREWER",1136.1999999999998,null,"E00","E05","Dual Voltage 20-30",15,"B",null,"Y",47,"M",30]
[90470,"R&G","Tagged","AUTO (WATERLINE) THERMAL SHUTTLE BREWERS ",null,null,"WILBUR CURTIS CO, INC.","SCTP15T10A1100  -  208V/30A/40A CURTIS BRANDED TWIN THERMAL BREWER - 1 1/2GAL.W/2  UNBRANDED SERVERS",2004.4499999999998,null,"E00","E38","220-30",10,"A",null,"Y",48,220,30]
[94052,"R&G","Tagged","AUTO (WATERLINE) THERMAL SHUTTLE BREWERS ",null,null,"FETCO, INC.","C62016  -  CBS-62H 120-220V/50A DUAL 3 GAL.LUXUS THERMAL BREWER ONLYW/FAUCET & SS/BB",2878.5189999999998,null,"E00","E24","220-50",10,"A",null,"Y",49,220,50]
[93137,"R&G","Tagged","AUTO (WATERLINE) THERMAL SHUTTLE BREWERS ",null,null,"FETCO, INC.","C62016  -  CBS-62H 220V/40A/1PH -  DUAL 3 GAL.LUXUS THRL. BREWER ONLY 1/2 BATCH -  W/FAUCET & SS/BB",3095.616,null,"E00","E52","220-30",15,"B",null,"Y",50,220,30]
[93497,"R&G","Tagged","AUTO (WATERLINE) THERMAL SHUTTLE BREWERS ",null,null,"FETCO, INC.","E51016  -  CBS-2051 208V/1PH/30A - THERMAL BREWER ONLY ",1426,null,"E00","E12","220-50",15,"B",null,"Y",51,220,40]
[90788,"R&G","Tagged","AUTO (WATERLINE) THERMAL SHUTTLE BREWERS ",null,null,"FETCO, INC.","CBS2052  -  CBS-52H DUAL 1.5GL THERMAL BREWER ONLY ",2253.0569999999998,null,"E00","E40","220-30",15,"B",null,"Y",52,220,30]
[100804,"R&G","Tagged","AUTO (WATERLINE) THERMAL SHUTTLE BREWERS ",null,null,"WILBUR CURTIS CO, INC.","SCTP15T10A1000-001  -  208V/30A/40A FOLGERS BRANDED TWIN THERMAL BREWER - 1 1/2GAL. - INCLUDES REG-DECAF FOLGERS SERVERSV",2225.25,null,"E00","E38","220-50",10,"A",null,"Y",54,208,40]
[92309,"R&G","Tagged","AUTO (WATERLINE) THERMAL SHUTTLE BREWERS ",null,null,"WILBUR CURTIS CO, INC.","TP15T19A1100  -  220V/30A/3-PH/4W+G - G3 THERMOPRO TWIN BREWER W/2 - 1.5 GAL. SERVERS, W/ CURTIS GRAPHICS",2271.25,null,"E00","E38","220-30",15,"D",null,"Y",56,220,30]
[90767,"R&G","Tagged","AUTO (WATERLINE) THERMAL SHUTTLE BREWERS ",null,null,"FETCO, INC.","C62056  -  CBS-62H 220V/50A DUAL 3 GAL.LUXUS THERMAL BREWER ONLY / 3PH - W/FAUCET & SS/BB",3248.1634999999997,null,"E00","E52","220-50",15,"D",null,"Y",57,220,50]
[99788,"R&G","Tagged","COFFEE URNS ",null,null,"WILBUR CURTIS CO, INC.","SCRU-150-12  -  220V/30A SINGLE 3 GALLON ELECTRIC URN W/AGITATOR",1472,null,"G00","G00","220-30",10,"A",null,"Y",59,220,30]
[91314,"R&G","Tagged","COFFEE URNS ",null,null,"WILBUR CURTIS CO, INC.","SCRU-300-12  -  220V/30A TWIN 3 GALLON ELECTRIC URN W/AGITATOR",1822.7499999999998,null,"G00","G08","220-30",10,"A",null,"Y",60,220,30]
[91272,"R&G","Tagged","COFFEE URNS ",null,null,"WILBUR CURTIS CO, INC.","SCRU-600-12  -  220V/40A TWIN 6 GALLON ELECTRIC URN W/AGITATOR",2825.5499999999997,null,"G00","G25","220-50",10,"A",null,"Y",61,220,40]
[91462,"R&G","Tagged","COFFEE URNS ",null,null,"WILBUR CURTIS CO, INC.","SCRU-600-20  -  220V/30A TWIN 6 GALLON 3 PHASE ELECTRIC URN W/AGITATOR",2633.5,null,"G00","G30","220-30",10,"A",null,"Y",62,220,30]
[90746,"R&G","Tagged","COFFEE URNS ",null,null,"WILBUR CURTIS CO, INC.","SCRU-1000-12  -  220V/50A TWIN 10 GALLON ELECTRIC URN W/AGITATOR",3363.7499999999995,null,"G00","G42","220-50",10,"A",null,"Y",63,220,50]
[95661,"R&G","Tagged","COFFEE URNS ",null,null,"WILBUR CURTIS CO, INC.","SCRU-1000-20  -  220V/30A TWIN 10 GALLON 3 PHASE ELECTRIC URN W/AGITATOR",3550.6249999999995,null,"G00","G47","220-30",10,"A",null,"Y",64,220,30]
[95851,"R&G","Tagged","COFFEE URNS ",null,null,"WILBUR CURTIS CO, INC.","SCRU-300-14  -  220V/30A REFURB ONLY TWIN 3 GALLON D/S ELECTRIC URN W/AGITATOR",2254,null,"G00","G11","220-30",13,"C",null,"Y",66,220,30]
[91702,"R&G","Tagged","COFFEE URNS ",null,null,"WILBUR CURTIS CO, INC.","SCRU-300-20  -  220V/30A TWIN 3 GALLON 3 PHASE ELECTRIC URN W/AGITATOR",2259.75,null,"G00","G13","220-30",15,"B",null,"N",67,220,30]
[98020,"R&G","Tagged","COFFEE URNS ",null,null,"WILBUR CURTIS CO, INC.","SCRU-600-14  -  220V/40A REFURB ONLY TWIN 6 GALLON D/S ELECTRIC URN W/AGITATOR",2825.5499999999997,null,"G00","G28","220-50",13,"C",null,"Y",68,220,40]
[90555,"R&G","Tagged","COFFEE URNS ",null,null,"GRINDMASTER","AMV-120E  -  208V80A BANQUET BREWING URN 120 GALLON HOLD TANK",22123.814999999995,null,"G00","G52","High Volume R&G",20,"D",null,"N",69,220,80]
[90449,"R&G","Tagged","COFFEE URNS ",null,null,"GRINDMASTER","AMV-60E  -  208V80A BANQUET BREWING URN 60 GALLON HOLD TANK",10864.912499999999,null,"G00","G52","High Volume R&G",20,"D",null,"N",70,220,80]
[95658,"R&G","Tagged","COFFEE URNS ",null,null,"GRINDMASTER","AMV-160E  -  120/208V/1PH/3W/72A - BANQUET URN - (2) 10GL. URNS W/120GL.HOLDING TANK, includes pumps",20933.392499999998,null,"G00","G51","High Volume R&G",20,"D",null,"N",71,208,80]
[99416,"R&G","Tagged","COFFEE URNS ",null,null,"GRINDMASTER","AMV-80E  -  220V/80A - 80 GAL. BANQUET URN, W/ 1 - 60 GAL. HOLDING TANK",11488.73,null,"G00","G52","High Volume R&G",20,"D",null,"N",72,220,80]
[96672,"R&G","Tagged","COFFEE URNS ",null,null,"GRINDMASTER","A88040E  -  120V/15A 40 GAL. HOLDING TANK",3359.4374999999995,null,"G00","G52","120-20",20,"D",null,"N",73,120,20]
[99720,"R&G","Tagged","COFFEE URNS ",null,null,"GRINDMASTER","A88060E  -  120V/15A  60-GAL. HOLDING TANK",3796.4374999999995,null,"G00","G52","120-15",20,"D",null,"N",74,120,15]
[90769,"R&G","Tagged","COFFEE URNS ",null,null,"GRINDMASTER","A88120E  -  120V/20A, 120 - GAL. HOLDING TANK (FOR A AMW-URN)",4942.47,null,"G00","G52","120-20",20,"D",null,"N",75,120,20]
[93486,"R&G","Tagged","COFFEE URNS ",null,null,"GRINDMASTER","A88120E-W/70T100  -  120V/20A, 120 - GAL. HOLDING TANK, (FOR A AMV URN)  W/OPT-70T100, HIGH SPEED JUG FILLER",1652.9524999999999,null,"G00","G52","120-20",20,"D",null,"N",76,120,20]
[96904,"Liquid","Tagged","LIQUID COFFEE DISPENSERS ",null,null,"BRAVILOR BONAMAT BV","C60B  -  120V/15A BROWN - OFFICE COFFEE SERVICE C60 2 PRODUCT LIQUID COFFEE",1250,null,"W00","W03","C60",10,"A",null,"Y",78,120,15]
[91389,"Liquid","Tagged","LIQUID COFFEE DISPENSERS ",null,null,"WITTENBORG APS","A07  -  220V/20A REFURB ONLY GENERIC BRANDING 1 PRODUCT - LIQUID COFFEE (DISCONT.)",600,null,"V00","V05","C110",13,"C",null,"Y",79,220,20]
[91413,"Liquid","Tagged","LIQUID COFFEE DISPENSERS ",null,null,"WITTENBORG APS","A08  -  110V/20A REFURB ONLY GENERIC BRANDING 1 PRODUCT - LIQUID COFFEE (DISCONT.)  ",600,null,"V00","V01","C110",13,"C",null,"Y",80,120,20]
[93054,"Liquid","Tagged","LIQUID COFFEE DISPENSERS ",null,null,"WITTENBORG APS","CAF300K72CU  -  220V/30A REFURB ONLY GENERIC BRANDING 2 PRODUCT LIQUID COFFEE W/FAUCET/CUNO FILTER PACKAGE (DISCONT.)",600,null,"V00","V10","C300",13,"C",null,"Y",81,220,30]
[91661,"Liquid","Tagged","LIQUID COFFEE DISPENSERS ",null,null,"WITTENBORG APS","C600  -  20A-50A REFURB ONLY RED GENERIC BRANDING MULTI VOLTAGE  MULTI BEVERAGE COFFEE/MILK OR CHOCOLATE UNIT (DISCONT.)",1140,null,"V00","V17","C600",13,"C",null,"Y",82,"M",20]
[90082,"Liquid","Tagged","LIQUID COFFEE DISPENSERS ",null,null,"WITTENBORG APS","C600B  -  20A-50A BROWN - GENERIC BRANDING MULTI VOLTAGE MULTI BEVERAGE COFFEE/MILK DISPENSER ",1140,null,"V00","V17","C600",10,"A",null,"Y",83,"M",20]
[90513,"Liquid","Tagged","LIQUID COFFEE DISPENSERS ",null,null,"WITTENBORG APS","C700  -  20A-50A REFURB ONLY RED GENERIC BRANDING MULTI VOLTAGE MULTI BEVERAGE LIQUID ESPRESSO UNIT (DISCONT.)",6140,null,"V00","V18","C700",13,"C",null,"Y",84,"M",20]
[90200,"Liquid","Tagged","LIQUID COFFEE DISPENSERS ",null,null,"WITTENBORG APS","C700B  -  20A-50A BROWN - GENERIC BRANDING MULTI VOLTAGE,MULTI BEVERAGE LIQUID ESPRESSO UNIT",6140,null,"V00","V18","C700",10,"A",null,"Y",85,"M",20]
[91220,"Liquid","Tagged","LIQUID COFFEE DISPENSERS ",null,null,"WITTENBORG APS","NG100  -  110/208V/15-30A NEXT GEN GENERIC BRANDING - 1 PRODUCT   ",1860,null,"V00","V01","NG100",10,"A",null,"Y",86,"M",15]
[91400,"Liquid","Tagged","LIQUID COFFEE DISPENSERS ",null,null,"WITTENBORG APS","NG100C  -  110/208V/15-30A NEXT GEN GENERIC BRANDING - 1 PRODUCT -W/ COOL KIT  ",2090,null,"V00","V01","NG100",10,"A",null,"Y",87,"M",15]
[91401,"Liquid","Tagged","LIQUID COFFEE DISPENSERS ",null,null,"WITTENBORG APS","NG300B  -  110/208V/15-30A NEXT GEN GENERIC BRANDING - 2 PRODUCT  BUTTON ",2310,null,"V00","V10","NG300",10,"A",null,"Y",88,"M",30]
[91403,"Liquid","Tagged","LIQUID COFFEE DISPENSERS ",null,null,"WITTENBORG APS","NG300BC   -  110/208V/15-30A NEXT GEN GENERIC BRANDING - 2 PRODUCT  BUTTON  W/COOL KIT",2240,null,"V00","V10","NG300",10,"A",null,"Y",89,"M",30]
[91409,"Liquid","Tagged","LIQUID COFFEE DISPENSERS ",null,null,"WITTENBORG APS","NG300H  -  110/208V/15-30A NEXT GEN GENERIC BRANDING - 2 PRODUCT  HANDLE ",2360,null,"V00","V10","NG300",10,"A",null,"Y",90,"M",30]
[91410,"Liquid","Tagged","LIQUID COFFEE DISPENSERS ",null,null,"WITTENBORG APS","NG300HC  -  110/208V/15-30A NEXT GEN GENERIC BRANDING - 2 PRODUCT  HANDLE  W/COOL KIT",2660,null,"V00","V10","NG300",10,"A",null,"Y",91,"M",30]
[98892,"Liquid","Tagged","LIQUID COFFEE DISPENSERS ",null,null,"BUNN","HV3  -  220V/50A LCR-3 HV HIGH VOLUME 3 PRODUCT LIQUID COFFEE  40800.0401",5060,null,"V00","V10","HV3",10,"A",null,"Y",92,220,60]
[90791,"Liquid","Tagged","LIQUID COFFEE DISPENSERS - DEMONSTRATOR",null,null,"WITTENBORG APS","A08D  -  110V/20A REFURB ONLY 1-PRODUCT LIQUID COFFEE DEMONSTRATOR PO KIT",719.18,null,"V00","V03","C110",15,"B",null,"N",94,120,20]
[97634,"Grinders","Tagged","FOODSERVICE GRINDERS - LOW PROFILE",null,null,"WILBUR CURTIS CO, INC.","SCSLG-10  -  120V/15A SINGLE HOPPER LOW PROFILE COM. GRINDER",476.09999999999997,null,"R00","R00","120-15",10,"A",null,"Y",97,120,15]
[92312,"Grinders","Tagged","FOODSERVICE GRINDERS - LOW PROFILE",null,null,"BUNN","LPG  -  20580.0001 LOW PROFL GRNDR, SNGL HPPR,MEDIUM VOL.,120V/15AMP 15 1/4TALL",552,null,"R00","R08","120-15",10,"A",null,"Y",98,120,15]
[92304,"Grinders","Tagged","FOODSERVICE GRINDERS - LOW PROFILE",null,null,"BUNN","LPG-2E  -  26800.0000 LOW PROFL.DUAL GRNDR,2HOPPRS, MED. VOL.,120V/15AMP, 17 1/2TALL",786.59999999999991,null,"R00","R09","120-15",10,"A",null,"Y",99,120,15]
[93591,"Grinders","Tagged","FOODSERVICE GRINDERS - SINGLE HOPPER",null,null,"WILBUR CURTIS CO, INC.","SCSHG-10  -  120V/15A SINGLE HOPPER COM. GRINDER",770.49999999999989,null,"R00","R00","120-15",10,"A",null,"Y",101,120,15]
[95414,"Grinders","Tagged","FOODSERVICE GRINDERS - SINGLE HOPPER",null,null,"GRINDMASTER","100  -  120V/15A SINGLE 6 LBS HOPPER  FOODSERVICE GRINDER",718.86500000000001,null,"R00","R00","120-15",10,"A",null,"Y",102,120,15]
[99366,"Grinders","Tagged","FOODSERVICE GRINDERS - DUAL HOPPER",null,null,"WILBUR CURTIS CO, INC.","SCILGD-11  -  120V/15A DUAL DIGITAL INTERLOCK - COMMERCIAL GRINDER",1052.25,null,"R00","R01","120-15",10,"A",null,"Y",104,120,15]
[91546,"Grinders","Tagged","FOODSERVICE GRINDERS - DUAL HOPPER",null,null,"WILBUR CURTIS CO, INC.","ILGD-10  -  120V/15A CURTIS LOGO DUAL INTERLOCK GRINDER",1144.25,null,"R00","R05","120-15",15,"B",null,"Y",105,120,15]
[90928,"Grinders","Tagged","FOODSERVICE GRINDERS - DUAL HOPPER",null,null,"GRINDMASTER","250  -  120V/15A DUAL 5.5 LBS HOPPER FOODSERVICE GRINDER ",967.95499999999993,null,"R00","R04","120-15",10,"A",null,"Y",106,120,15]
[90381,"Grinders","Tagged","RETAIL (BAG) GRINDERS ",null,null,"GRINDMASTER","835  -  120V/15A RETAIL BAG GRINDER 1.5 LBS HOPPER HEAVY DUTY GRINDER (RED OR BLACK)",827.02249999999992,null,"S00","S01","120-15",15,"B",null,"Y",108,120,15]
[92676,"Grinders","Tagged","RETAIL (BAG) GRINDERS ",null,null,"GRINDMASTER","875-HD  -  120V/15A RETAIL BAG GRINDER 3 LBS HOPPER HEAVY DUTY GRINDER",853.24249999999995,null,"S00","S01","120-15",15,"B",null,"Y",109,120,15]
[92311,"Tea","Tagged","ICED TEA BREWERS",null,null,"WILBUR CURTIS CO, INC.","SCPTT310070  -  120V/15A - LOW PROFILE PICKWICK BRANDED  3 GAL. ICED TEA WITH PICKWICK CONT.",635.94999999999993,null,"F00","F09","120-15",10,"A",null,"Y",111,120,15]
[95208,"Tea","Tagged","ICED TEA BREWERS",null,null,"WILBUR CURTIS CO, INC.","SCPTTP310000  -  120V/15A - LOW PROFILE  PARADISE BRANDED 3 GAL. ICED TEA WITH PARADISE CONT. & FILTER SYSTEM",734.84999999999991,null,"F00","F08","120-15",10,"A",null,"Y",112,120,15]
[91348,"Tea","Tagged","ICED TEA BREWERS",null,null,"WILBUR CURTIS CO, INC.","SCPTT310000  -  120V/15A - LOW PROFILE CURTIS BRANDED 3 GAL ICED TEA BRWR W/ TCO308B000 - CONTAINER",624.44999999999993,null,"F00","F05","120-15",10,"A",null,"Y",113,120,15]
[92310,"Tea","Tagged","ICED TEA BREWERS",null,null,"WILBUR CURTIS CO, INC.","SCTCTS10070  -  120V/15A - 3 GAL. ICED TEA WITH PICKWICK BRANDED CONT.",635.94999999999993,null,"F00","F07","120-15",10,"A",null,"Y",114,120,15]
[90803,"Tea","Tagged","ICED TEA BREWERS",null,null,"WILBUR CURTIS CO, INC.","SCTCTPS10000  -  120V/15A - 3 GAL. ICE TEA PARADISE BRANDED & FILTER SYSTEM",760.15,null,"F00","F06","120-15",10,"A",null,"Y",115,120,15]
[90254,"Tea","Tagged","ICED TEA BREWERS",null,null,"WILBUR CURTIS CO, INC.","SCTCTS10103  -  120V/15A - 3 GAL. ICED TEA WITH MARYLAND CLUB CONT.",635.94999999999993,null,"F00","F10","120-15",10,"A",null,"Y",116,120,15]
[93021,"Tea","Tagged","ICED TEA BREWERS",null,null,"WILBUR CURTIS CO, INC.","SCTCTS10000  -  120V/15A - 3 GAL. ICED TEA  WITH CURTIS LOGO WITH CONT.",623.29999999999995,null,"F00","F03","120-15",10,"A",null,"Y",117,120,15]
[91181,"Tea","Tagged","ICED TEA BREWERS",null,null,"BUNN","TB3  -  120V/15A REFURB ONLY 3 GAL ICE TEA BREWER NO CONTAINER - 03700.0009 ",630.19999999999993,null,"F00","F03","120-15",13,"C",null,"Y",119,120,15]
[58,"Tea","Tagged","ICED TEA BREWERS",null,null,"BUNN","TB3Q  -  120V/15A REFURB ONLY  ICED TEA QUICK BREWER 3-GAL 36700.0090 ",525.54999999999995,null,"F00","F03","120-15",13,"C",null,"Y",120,120,15]
[97430,"Tea","Tagged","ICED TEA BREWERS - SWEET ICED TEA",null,null,"WILBUR CURTIS CO, INC.","SCTCTS10200  -  120V/15A - 3 GAL. SWEET ICED TEA (ELECTRIC PUMP) WITH CURTIS CONTAINER",883.19999999999993,null,"F00","F16","120-15",15,"B",null,"Y",122,120,15]
[96565,"Tea","Tagged","ICED TEA BREWERS - SWEET ICED TEA",null,null,"WILBUR CURTIS CO, INC.","SCTCTS10270  -  120V/15A - 3 GAL. SWEET ICED TEA (ELECTRIC PUMP) WITH PICKWICK CONTAINER",959.09999999999991,null,"F00","F16","120-15",10,"A",null,"Y",123,120,15]
[100892,"Tea","Tagged","ICED TEA BREWERS",null,null,"WILBUR CURTIS COMPANY INC","SCTCTS10600  -  120V/15A - TWIN BREW 3 GAL ICED TEA BRWR SWIVAL BB, NO (NARROW STYLE) CONTAINERS",649.75,null,"F00","F15","120-15",15,"B",null,"Y",125,120,15]
[95556,"Tea","Tagged","ICED TEA BREWERS",null,null,"WILBUR CURTIS CO, INC.","TCTT10000  -  120V/15A - 3 GAL. ICED TEA X-TALL WITH CURTIS LOGO WITH CONT.",644,null,"F00","F12","120-15",15,"B",null,"N",126,120,15]
[90793,"Tea","Tagged","ICED TEA BREWERS",null,null,"WILBUR CURTIS CO, INC.","SCTCTS10012  -  120V/15A 3-GL. ICED TEA - BRWR ONLY - NO CONT, PARADISE BREW CONE AND SETTINGS",600.29999999999995,null,"F00","F03","120-15",15,"B",null,"Y",127,120,15]
[91297,"BIB Tea","Tagged","BIB ICED TEA DISPENSER",null,null,"WILBUR CURTIS CO, INC.","TCC1070  -  1 HEAD PICKWICK SPEC LIQUID CONCENTRATE ICED TEA DISPENSER",455.4,null,"F00","F17",null,15,"B",null,"Y",129]
[94333,"BIB Tea","Tagged","BIB ICED TEA DISPENSER",null,null,"WILBUR CURTIS CO, INC.","TCC2070  -  2 HEAD PICKWICK SPEC LIQUID CONCENTRATE ICED TEA DISPENSER",514.04999999999995,null,"F00","F17",null,15,"B",null,"Y",130]
[96671,"BIB Tea","Tagged","BIB ICED TEA DISPENSER",null,null,"WILBUR CURTIS CO, INC.","TCC3070  -  3 HEAD PICKWICK SPEC LIQUID CONCENTRATE ICED TEA DISPENSER",665.84999999999991,null,"F00","F17",null,15,"B",null,"Y",131]
[91224,"BIB Tea","Tagged","BIB ICED TEA DISPENSER",null,null,"WILBUR CURTIS CO, INC.","TCC1  -  1 HEAD CURTIS SPEC (NOT SLF) LIQUID CONCENTRATE ICE TEA DISPENSER",281.75,null,"F00","F17",null,15,"B",null,"Y",132]
[91225,"BIB Tea","Tagged","BIB ICED TEA DISPENSER",null,null,"WILBUR CURTIS CO, INC.","TCC2  -  2 HEAD CURTIS SPEC (NOT SLF) LIQUID CONCENTRATE ICE TEA DISPENSER",362.25,null,"F00","F17",null,15,"B",null,"Y",133]
[91226,"BIB Tea","Tagged","BIB ICED TEA DISPENSER",null,null,"WILBUR CURTIS CO, INC.","TCC3  -  3 HEAD CURTIS SPEC (NOT SLF) LIQUID CONCENTRATE ICE TEA DISPENSER",478.4,null,"F00","F17",null,15,"B",null,"Y",134]
[95614,"BIB Tea","Tagged","BIB ICED TEA DISPENSER",null,null,"WILBUR CURTIS CO, INC.","TCC2075  -  TCC2075: 2-HD ARCADIA BAY BRANDED LIQUID BIB TEA - COREMARK",552,null,"F00","F17",null,15,"P",null,"Y",135]
[100739,"Tea","Tagged","ICED TEA BREWERS - ICED TEA/HOT COFFEE COMBO",null,null,"WILBUR CURTIS CO, INC.","CBHS - 220V/20A-HV COMBO TEA/COFF-MULT BTCH OPTN BREWER ONLY",934.38,null,"F00","F13","220-20",20,"D",null,"Y",137,220,20]
[93537,"Tea","Tagged","ICED TEA BREWERS - ICED TEA/HOT COFFEE COMBO",null,null,"WILBUR CURTIS CO, INC.","SCCBS10000  -  120V/15A  - G-3 COMBO COFF./TEA BWR-W/JMS LGO ON UNIT - SEPARATE CURTIS LBL -NO DISPNSR. - 1PH",758.99999999999989,null,"F00","F13","120-15",10,"A",null,"Y",138,120,15]
[97450,"Tea","Tagged","ICED TEA BREWERS - ICED TEA/HOT COFFEE COMBO",null,null,"WILBUR CURTIS CO, INC.","SCCBP10001  -  120V/15A  - G-3 LOW PROFILE COMBO COFF./TEA BWR  -NO DISPNSR. - 1PH",804.99999999999989,null,"F00","F13","120-15",15,"B",null,"Y",139,120,15]
[91009,"R&G","Tagged","ICED COFFEE BREWERS ",null,null,"BUNN","IC3  -  220V/30A 24450.0000 ICED COFFEE BREWER - NO CONT. ",832.59999999999991,null,"F00","F15","120-15",15,"B",null,"Y",141,120,15]

{"sheet":"Ancillary List","index":5,"n_rows":417,"n_cols":20,"rows_kept":417,"cut":false,"hidden":false,"merged":[]}
["Catalog_ID","Section","MODEL","Manufacturer Part ID","Description","Tag Type","Active","US Purchaseable","Equipment_Model","Brand","Price","VENDOR","Seq","Price list date: 8-31-2015","2016-02-22"]
[100771,"GRAPHICS - FOLGERS","VP40925","VP40925","FOLGERS REBRANDING KIT FOR C60","NONTAGGED","ACTIVE","Y","C60","FOLGERS",17.1465,"CMP",2]
[100769,"GRAPHICS - FOLGERS","VP40931","VP40931","FOLGERS REBRANDING KIT FOR NG100 (HOT ONLY)","NONTAGGED","ACTIVE","Y","NG100","FOLGERS",5.75,"CMP",3]
[100776,"GRAPHICS - FOLGERS","VP40933","VP40933","FOLGERS REBRANDING KIT FOR NG100C (FOR CAFÉ COOL) ","NONTAGGED","ACTIVE","Y","NG100","FOLGERS",5.75,"CMP",4]
[100770,"GRAPHICS - FOLGERS","VP40932","VP40932","FOLGERS REBRANDING KIT FOR NG300 (HOT ONLY)","NONTAGGED","ACTIVE","Y","NG300","FOLGERS",5.232499999999999,"CMP",5]
[100777,"GRAPHICS - FOLGERS","VP40934","VP40934","FOLGERS REBRANDING KIT FOR NG300C (FOR CAFÉ COOL) ","NONTAGGED","ACTIVE","Y","NG300","FOLGERS",9.1999999999999993,"CMP",6]
[100773,"GRAPHICS - FOLGERS","VP40926","VP40926","FOLGERS REBRANDING KIT FOR C110","NONTAGGED","ACTIVE","Y","C110","FOLGERS",5.75,"CMP",7]
[100774,"GRAPHICS - FOLGERS","VP40927","VP40927","FOLGERS REBRANDING KIT FOR C300","NONTAGGED","ACTIVE","Y","C300","FOLGERS",7.3369999999999997,"CMP",8]
[100767,"GRAPHICS - FOLGERS","VP40928","VP40928","FOLGERS REBRANDING KIT FOR C600","NONTAGGED","ACTIVE","Y","C600","FOLGERS",73.599999999999994,"CMP",9]
[100768,"GRAPHICS - FOLGERS","VP40929","VP40929","FOLGERS REBRANDING KIT FOR C700","NONTAGGED","ACTIVE","Y","C700","FOLGERS",73.599999999999994,"CMP",10]
[101092,"GRAPHICS - FOLGERS","VP50932","VP50932","FOLGERS REBRANDING KIT FOR C300 SIDES (L&R)","NONTAGGED","ACTIVE","Y","C300","FOLGERS",7.3369999999999997,"CMP",11]
[100772,"GRAPHICS - FOLGERS","VP40930","VP40930","FOLGERS REBRANDING KIT FOR HV3","NONTAGGED","ACTIVE","Y","HV3","FOLGERS",18.733499999999996,"CMP",12,null,null,null,null,null," "]
[101399,"GRAPHICS - GENERIC","C60G","C60G","GENERIC REBRANDING KIT FOR C60","NONTAGGED","ACTIVE","Y","C60","GENERIC",10.188999999999998,"CMP",14]
[101435,"GRAPHICS - GENERIC","C100G","C100G","GENERIC REBRANDING KIT FOR C110","NONTAGGED","ACTIVE","Y","C110","GENERIC",5.75,"CMP",15]
[101436,"GRAPHICS - GENERIC","C300G","C300G","GENERIC REBRANDING KIT FOR C300","NONTAGGED","ACTIVE","Y","C300","GENERIC",7.3369999999999997,"CMP",16]
[101438,"GRAPHICS - GENERIC","C600G","C600G","GENERIC REBRANDING KIT FOR C600","NONTAGGED","ACTIVE","Y","C600","GENERIC",73.599999999999994,"CMP",17]
[101439,"GRAPHICS - GENERIC","C700G","C700G","GENERIC REBRANDING KIT FOR C700","NONTAGGED","ACTIVE","Y","C700","GENERIC",73.599999999999994,"CMP",18]
[101401,"GRAPHICS - GENERIC","N100G","N100G","GENERIC REBRANDING KIT FOR NG100 (HOT ONLY)","NONTAGGED","ACTIVE","Y","NG100","GENERIC",9.1999999999999993,"CMP",19]
[101423,"GRAPHICS - GENERIC","N100GSP","N100GSP","GENERIC REBRANDING KIT FOR NG100C (FOR CAFÉ COOL) ","NONTAGGED","ACTIVE","Y","NG100","GENERIC",9.1999999999999993,"CMP",20]
[101400,"GRAPHICS - GENERIC","NG300G","NG300G","GENERIC REBRANDING KIT FOR NG300 (HOT ONLY)","NONTAGGED","ACTIVE","Y","NG300","GENERIC",9.1999999999999993,"CMP",21]
[101424,"GRAPHICS - GENERIC","N300GSP","N300GSP","GENERIC REBRANDING KIT FOR NG300C (FOR CAFÉ COOL)","NONTAGGED","ACTIVE","Y","NG300","GENERIC",9.1999999999999993,"CMP",22]
[101426,"GRAPHICS - GENERIC","HV3G","HV3G","GENERIC REBRANDING KIT FOR HV3","NONTAGGED","ACTIVE","Y","HV3","GENERIC",18.733499999999996,"CMP",23]
[101151,"GRAPHICS - FOLGERS SUBTLE","VP50934","VP50934","SUBTLE REBRANDING KIT FOR C60","NONTAGGED","ACTIVE","Y","C60","SUBTLE",10.188999999999998,"CMP",24]
[101155,"GRAPHICS - FOLGERS SUBTLE","VP50937","VP50937","SUBTLE REBRANDING KIT FOR C110","NONTAGGED","ACTIVE","Y","C110","SUBTLE",5.75,"CMP",25]
[101156,"GRAPHICS - FOLGERS SUBTLE","VP50938","VP50938","SUBTLE REBRANDING KIT FOR C300","NONTAGGED","ACTIVE","Y","C300","SUBTLE",7.3369999999999997,"CMP",26]
[101441,"GRAPHICS - FOLGERS SUBTLE","C600SU","C600SU","SUBTLE REBRANDING KIT FOR C600","NONTAGGED","ACTIVE","Y","C600","SUBTLE",73.599999999999994,"CMP",27]
[101442,"GRAPHICS - FOLGERS SUBTLE","C700SU","C700SU","SUBTLE REBRANDING KIT FOR C700","NONTAGGED","ACTIVE","Y","C700","SUBTLE",73.599999999999994,"CMP",28]
[101152,"GRAPHICS - FOLGERS SUBTLE","VP50935","VP50935","SUBTLE REBRANDING KIT FOR NG100 (HOT ONLY)","NONTAGGED","ACTIVE","Y","NG100","SUBTLE",9.1999999999999993,"CMP",29]
[101154,"GRAPHICS - FOLGERS SUBTLE","VP50936","VP50936","SUBTLE REBRANDING KIT FOR NG300 (HOT ONLY)","NONTAGGED","ACTIVE","Y","NG100","SUBTLE",9.1999999999999993,"CMP",31]
[101446,"GRAPHICS - FOLGERS SUBTLE","HV3SU","HV3SU","SUBTLE REBRANDING KIT FOR HV3","NONTAGGED","ACTIVE","Y","HV3","SUBTLE",18.733499999999996,"CMP",33]
[101455,"GRAPHICS - OTHER","NG300HJ","NG300HJ","JAVA COAST REBRANDING KIT FOR NG300","NONTAGGED","ACTIVE","Y","NG300","JAVA COAST",9.1999999999999993,"CMP",34]
[101706,"GRAPHICS - OTHER","C300HJ","101706","JAVA COAST REBRANDING KIT FOR C300","NONTAGGED","ACTIVE","Y","C300","JAVA COAST",9.1999999999999993,"CMP",35]
[101254,"GRAPHICS - OTHER","39396","39396","C60 COMFORT INN WAKEUP COFFEE FACEPLATE","NONTAGGED","ACTIVE","Y","C60","COMFORT INN",8.625,"CMP",36]
[101255,"GRAPHICS - OTHER","39397","39397","NG300 COMFORT INN WAKEUP COFFEE FACEPLATE","NONTAGGED","ACTIVE","Y","NG300","COMFORT INN",9.1999999999999993,"CMP",37]
[101257,"GRAPHICS - OTHER","39398","39398","C60 SLEEPINN FACEPLATE","NONTAGGED","ACTIVE","Y","C60","SLEEPINN",8.625,"CMP",38]
[101258,"GRAPHICS - OTHER","39399","39399","NG300 SLEEPINN FACEPLATE","NONTAGGED","ACTIVE","Y","NG300","SLEEPINN",9.1999999999999993,"CMP",39]
[101260,"GRAPHICS - OTHER","39400","39400","C60 Q BREAKFAST FACEPLATE","NONTAGGED","ACTIVE","Y","C60","Q BREAKFAST",8.625,"CMP",40]
[101261,"GRAPHICS - OTHER","39401","39401","NG300 Q BREAKFAST FACEPLATE","NONTAGGED","ACTIVE","Y","NG300","Q BREAKFAST",9.1999999999999993,"CMP",41]
[100348,"JMS BRANDS: SERVERS, DECANTER, AIRPOT AND THERMAL DISPENSERS","70110240709","70110240709","GLASS BOWL FOLGERS RED  REG 3PK","ANCILLARY","ACTIVE","Y",null,null,6.601,"WPA",43,null,null,null,null,null," "]
[100349,"JMS BRANDS: SERVERS, DECANTER, AIRPOT AND THERMAL DISPENSERS","70210240509","70210240509","GLASS BOWL FOLGERS  GREEN DECF 3 PK","ANCILLARY","ACTIVE","Y",null,null,6.601,"WPA",44,null,null,null,null,null," "]
[100350,"JMS BRANDS: SERVERS, DECANTER, AIRPOT AND THERMAL DISPENSERS","FOLGERS MIX BOWL","FOLGERS MIX BOWL","GLASS BOWL FOLGERS 2 RED/1 GREEN ","ANCILLARY","ACTIVE","N",null,null,11.0745,"WPA",45]
[100794,"JMS BRANDS: SERVERS, DECANTER, AIRPOT AND THERMAL DISPENSERS","SCTLXA2501S000-001","SCTLXA2501S000-001","FOLGERS CLASSIC ROAST BRANDED 2.5L SS EXTERIOR & LINER AIRPOT","ANCILLARY","ACTIVE","Y",null,null,52.555,"CUR",46]
[100992,"JMS BRANDS: SERVERS, DECANTER, AIRPOT AND THERMAL DISPENSERS","SCTLXA2501S000-004","SCTLXA2501S000-004","FOLGERS TRADITIONAL ROAST BRANDED 2.5L SS EXTERIOR & LINER AIRPOT","ANCILLARY","ACTIVE","Y",null,null,52.555,"CUR",47]
[100993,"JMS BRANDS: SERVERS, DECANTER, AIRPOT AND THERMAL DISPENSERS","SCTLXA2501S000D-002","SCTLXA2501S000D-002","FOLGERS TRADITIONAL ROAST BRANDED DECAF 2.5L SS EXTERIOR & LINER AIRPOT","ANCILLARY","ACTIVE","Y",null,null,52.555,"CUR",48]
[100795,"JMS BRANDS: SERVERS, DECANTER, AIRPOT AND THERMAL DISPENSERS","SCTLXA2501S000D-001","SCTLXA2501S000D-001","FOLGERS CLASSIC ROAST BRANDED DECAF 2.5L SS EXTERIOR & LINER AIRPOT","ANCILLARY","ACTIVE","Y",null,null,52.555,"CUR",49]
[100796,"JMS BRANDS: SERVERS, DECANTER, AIRPOT AND THERMAL DISPENSERS","SCTLXA2501S000-002","SCTLXA2501S000-002","FOLGERS GOURMET SUPREME  BRANDED 2.5L SS EXTERIOR & LINER AIRPOT","ANCILLARY","ACTIVE","Y",null,null,52.555,"CUR",50]
[100797,"JMS BRANDS: SERVERS, DECANTER, AIRPOT AND THERMAL DISPENSERS","SCTLXA2501S000-003","SCTLXA2501S000-003","FOLGERS 100% COLOMBIAN BRANDED 2.5L SS EXTERIOR & LINER AIRPOT","ANCILLARY","ACTIVE","Y",null,null,52.555,"CUR",51]
[100798,"JMS BRANDS: SERVERS, DECANTER, AIRPOT AND THERMAL DISPENSERS","SCTLXA2201G000-001","SCTLXA2201G000-001","FOLGERS CLASSIC ROAST BRANDED 2.2L SS EXTERIOR/GLASS LINER AIRPOT","ANCILLARY","ACTIVE","Y",null,null,45.54,"CUR",52]
[100799,"JMS BRANDS: SERVERS, DECANTER, AIRPOT AND THERMAL DISPENSERS","SCTLXA2201G000D-001","SCTLXA2201G000D-001","FOLGERS CLASSIC ROAST BRANDED DECAF 2.2L SS EXTERIOR/GLASS LINER AIRPOT","ANCILLARY","ACTIVE","Y",null,null,45.54,"CUR",53]
[100994,"JMS BRANDS: SERVERS, DECANTER, AIRPOT AND THERMAL DISPENSERS","SCTLXA2201G000-004","SCTLXA2201G000-004","FOLGERS TRADITIONAL ROAST BRANDED 2.2L SS EXTERIOR/GLASS LINER AIRPOT","ANCILLARY","ACTIVE","Y",null,null,45.54,"CUR",54]
[100995,"JMS BRANDS: SERVERS, DECANTER, AIRPOT AND THERMAL DISPENSERS","SCTLXA2201G00D-002","SCTLXA2201G00D-002","FOLGERS TRADITIONAL ROAST BRANDED DECAF 2.2L SS EXTERIOR/GLASS LINER AIRPOT","ANCILLARY","ACTIVE","Y",null,null,45.54,"CUR",55]
[100800,"JMS BRANDS: SERVERS, DECANTER, AIRPOT AND THERMAL DISPENSERS","SCTLXA2201G000-002","SCTLXA2201G000-002","FOLGERS GOURMET SUPREME  BRANDED 2.2L SS EXTERIOR/GLASS LINER AIRPOT","ANCILLARY","ACTIVE","Y",null,null,45.54,"CUR",56]
[100801,"JMS BRANDS: SERVERS, DECANTER, AIRPOT AND THERMAL DISPENSERS","SCTLXA2201G000-003","SCTLXA2201G000-003","FOLGERS 100% COLOMBIAN BRANDED 2.2L SS EXTERIOR/GLASS LINER AIRPOT","ANCILLARY","ACTIVE","Y",null,null,45.54,"CUR",57]
[100802,"JMS BRANDS: SERVERS, DECANTER, AIRPOT AND THERMAL DISPENSERS","SCTXSG1501S600","SCTXSG1501S600","FOLGERS BRANDED 1.5GALLON THERMOPRO CONTAINER","ANCILLARY","ACTIVE","Y",null,null,256.67999999999995,"CUR",58]
[100803,"JMS BRANDS: SERVERS, DECANTER, AIRPOT AND THERMAL DISPENSERS","SCTXSG1501S600D","SCTXSG1501S600D","FOLGERS BRANDED 1.5GALLON DECAF THERMOPRO CONTAINER","ANCILLARY","ACTIVE","Y",null,null,256.67999999999995,"CUR",59]
[101110,"JMS BRANDS: SERVERS, DECANTER, AIRPOT AND THERMAL DISPENSERS","SCTLXA2201G000-006","SCTLXA2201G000-006","JAVA COAST 2.2L SS EXTERIOR/GLASS LINER AIRPOT","ANCILLARY","ACTIVE","Y",null,null,103.49999999999999,"CUR",60]
[101111,"JMS BRANDS: SERVERS, DECANTER, AIRPOT AND THERMAL DISPENSERS","SCTLXA2501S000-006","SCTLXA2501S000-006","JAVA COAST 2.5L SS EXTERIOR & LINER AIRPOT","ANCILLARY","ACTIVE","Y",null,null,114.99999999999999,"CUR",61]
[101108,"CAFÉ BUSTELO AIRPOT AND GOURMET BREW BASKETS ","SCTLXA2201G000-005","SCTLXA2201G000-005","CAFÉ BUSTELO 2.2L SS EXTERIOR/GLASS LINER AIRPOT","ANCILLARY","ACTIVE","Y",null,null,103.49999999999999,"CUR",63]
[101109,"CAFÉ BUSTELO AIRPOT AND GOURMET BREW BASKETS ","SCTLXA2501S000-005","SCTLXA2501S000-005","CAFÉ BUSTELO 2.5L SS EXTERIOR/GLASS LINER AIRPOT","ANCILLARY","ACTIVE","Y",null,null,114.99999999999999,"CUR",64]
[101113,"CAFÉ BUSTELO AIRPOT AND GOURMET BREW BASKETS ","WC-3338-101","WC-3338-101","GOURMET DEEP PLASTIC BREW BASKET FOR AIRPOT BREWERS FOR BUSTELO - 1 PER BREW HEAD","NONTAGGED","ACTIVE","Y",null,null,10.867499999999998,"CUR",65]
[100198,"CAFÉ BUSTELO AIRPOT AND GOURMET BREW BASKETS ","WC-3422","WC-3422","GOURMET DEEP PLASTIC BREW BASKET FOR 1.5 GALLON TERMOPRO & GEMINI BREWERS FOR BUSTELO - 1 PER BREW HEAD","NONTAGGED","ACTIVE","Y",null,null,30.221999999999998,"CUR",66]
[80080,"LIQUID - ACCESSORIES AND RE-POWER KITS","VP32253","VP32253","EXTRA HOT/ICED FLAVOR BUTTONS SHEET NG100/NG300","NONTAGGED","ACTIVE","Y",null,null,11.729999999999999,"CMP",68]
[101091,"LIQUID - ACCESSORIES AND RE-POWER KITS","VP50931","VP50931","FOLGERS REBRANDING KIT FOR C600/C700 SIDES (L&R)","NONTAGGED","ACTIVE","Y",null,null,73.599999999999994,"CMP",69]
[80681,"LIQUID - ACCESSORIES AND RE-POWER KITS","DE0053KIT","DE0053KIT","STEEL LEG EXTENSION  KIT FOR  DECS C300 (COMPLETE L&R LEG ASSEMBLY KIT)","ANCILLARY","ACTIVE","Y",null,null,90.021999999999991,"WPA",70]
[89898,"LIQUID - ACCESSORIES AND RE-POWER KITS","55733-03","55733-03","3M HOT WATER SYSTEM FOR  DECS EQUIPMENT  ","NONTAGGED","ACTIVE","Y",null,null,265.54649999999998,"AWS",71]
[88107,"LIQUID - ACCESSORIES AND RE-POWER KITS","36387600","36387600","NG100 KEY LOCK KIT FOR DOOR","NONTAGGED","ACTIVE","Y",null,null,17.779,"WIT",72,null,null,null,null,null," "]
[88595,"LIQUID - ACCESSORIES AND RE-POWER KITS","36412800","36412800","NG300 KEY LOCK KIT FOR DOOR","NONTAGGED","ACTIVE","Y",null,null,21.723499999999998,"WIT",73,null,null,null,null,null," "]
[81532,"LIQUID - ACCESSORIES AND RE-POWER KITS","256808","256808","AIRPOT LEG EXTENTION KIT FOR NG100 ","NONTAGGED","ACTIVE","Y",null,null,111.10149999999999,"WIT",74,null,null,null,null,null," "]
[89897,"LIQUID - ACCESSORIES AND RE-POWER KITS","256809","256809","AIRPOT LEG EXTENTION KIT FOR NG300","NONTAGGED","ACTIVE","Y",null,null,135.45849999999999,"WIT",75]
[88564,"LIQUID - ACCESSORIES AND RE-POWER KITS","255736","255736","RE-POWER KIT FOR NG SERIES BREWERS 120V/15A","NONTAGGED","ACTIVE","Y",null,null,45.528500000000001,"WIT",76,null,null,null,null,null," "]
[88583,"LIQUID - ACCESSORIES AND RE-POWER KITS","255737","255737","RE-POWER KIT FOR NG SERIES BREWERS 220V/20A","NONTAGGED","ACTIVE","Y",null,null,211.09399999999999,"WIT",77,null,null,null,null,null," "]
[88587,"LIQUID - ACCESSORIES AND RE-POWER KITS","255738","255738","RE-POWER KIT FOR NG SERIES BREWERS 220V/30A","NONTAGGED","ACTIVE","Y",null,null,99.36,"WIT",78,null,null,null,null,null," "]
[80013,"AMERICAN COFFE URN","2000-03","2000-03","3  GALLON - S.S. DISPENSER  (JAVA JUG)","ANCILLARY","ACTIVE","Y",null,null,424.44199999999995,"ACU",80]
[80014,"AMERICAN COFFE URN","2000-05","2000-05","5  GALLON - S.S. DISPENSER  (JAVA JUG)","ANCILLARY","ACTIVE","Y",null,null,468.096,"ACU",81]
[90080,"AMERICAN COFFE URN","325511","325511","32\"W x 48\"L w/DRAIN","ANCILLARY","ACTIVE","Y",null,null,857.78499999999985,"ACU",82]
[80000,"AMERICAN COFFE URN","3357","3357","4-POT AIRPOT RACK - BLACK","ANCILLARY","ACTIVE","Y",null,null,88.503999999999991,"ACU",83]
[96099,"AMERICAN COFFE URN","5500","5500","URN STAND 24 X 24 NO DRAIN - FLAT TOP","ANCILLARY","ACTIVE","Y",null,null,383.27199999999993,"ACU",84]
[96198,"AMERICAN COFFE URN","5504","5504","URN STAND 24 X 30 NO DRAIN - FLAT TOP","ANCILLARY","ACTIVE","Y",null,null,422.90099999999995,"ACU",85]
[96255,"AMERICAN COFFE URN","5506","5506","URN STAND 24 X 36 NO DRAIN - FLAT TOP","ANCILLARY","ACTIVE","Y",null,null,438.02349999999996,"ACU",86]
[91868,"AMERICAN COFFE URN","5507","5507","URN STAND 24 X 36 WITH DRAIN - DRAIN TOP","ANCILLARY","ACTIVE","Y",null,null,551.29849999999999,"ACU",87]
[96289,"AMERICAN COFFE URN","5510","5510","URN STAND 24 X 48 NO DRAIN - FLAT TOP","ANCILLARY","ACTIVE","Y",null,null,479.54999999999995,"ACU",88]
[96297,"AMERICAN COFFE URN","5511","5511","URN STAND 24 X 48 WITH DRAIN - DRAIN TOP","ANCILLARY","ACTIVE","Y",null,null,619.26349999999991,"ACU",89]
[90174,"AMERICAN COFFE URN","5512","5512","URN STAND 24 x 60 NO DRAIN - FLAT TOP","ANCILLARY","ACTIVE","Y",null,null,556.96799999999996,"ACU",90]
[93515,"AMERICAN COFFE URN","5513","5513","URN STAND 24 X 60 W/ DRAIN  (SPECIFY LEFT OR RIGHT)","ANCILLARY","ACTIVE","Y",null,null,723.10849999999994,"ACU",91]
[93510,"AMERICAN COFFE URN","5514","5514","URN STAND 24 x 72 NO DRAIN - FLAT TOP","ANCILLARY","ACTIVE","Y",null,null,781.63199999999983,"ACU",92]
[96321,"AMERICAN COFFE URN","5515","5515","URN STAND 24 X 72 WITH DRAIN - DRAIN TOP","ANCILLARY","ACTIVE","Y",null,null,1027.6975,"ACU",93]
[91736,"AMERICAN COFFE URN","5519","5519","URN STAND 24 X 98 WITH DRAIN - DRAIN TOP","ANCILLARY","ACTIVE","Y",null,null,1290.4034999999999,"ACU",94]
[93487,"AMERICAN COFFE URN","5554","5554","30 X 30 SS TABLE FLAT TOP","ANCILLARY","ACTIVE","Y",null,null,464.38149999999996,"ACU",95]
[93495,"AMERICAN COFFE URN","5556","5556","URN STAND 30 X 36 FLAT TOP","ANCILLARY","ACTIVE","Y",null,null,479.54999999999995,"ACU",96]
[91668,"AMERICAN COFFE URN","5564","5564","URN STAND 30 X 72 NO DRAIN - FLAT TOP","ANCILLARY","ACTIVE","Y",null,null,868.46849999999995,"ACU",97]
[94055,"AMERICAN COFFE URN","5565","5565","URN STAND 30 X 72 W/ DRAIN - DRAIN TOP","ANCILLARY","ACTIVE","Y",null,null,1115.8104999999998,"ACU",98]
[93711,"AMERICAN COFFE URN","5600","5600","24 X 48 TABLE W/SHELF, ICE BIN & WATER STATION ON LEFT SIDE","ANCILLARY","ACTIVE","Y",null,null,1008.5614999999999,"ACU",99]
[92499,"AMERICAN COFFE URN","42\"WORK TABLE","42\"WORK TABLE","CUSTOM ORDER: 42 w/6 BACK SPLASH, DRAIN ON RIGHT SIDE NO SHELF OR FRONT SUPPORTS","ANCILLARY","ACTIVE","Y",null,null,708.65300000000002,"ACU",100]
[93481,"AMERICAN COFFE URN","4'TBL-SINK (RGHT)","4'TBL-SINK (RGHT)","4' TABLE W/ SINK - FLAT TOP  (SPECIAL)","ANCILLARY","ACTIVE","Y",null,null,716.24300000000005,"ACU",101]
[93479,"AMERICAN COFFE URN","5'TABLE (LFT)","5'TABLE (LFT)","5'TABLE W/WTR STATION  & BUILT IN ICE BIN *LEFT END*","ANCILLARY","ACTIVE","Y",null,null,1189.1344999999999,"ACU",102]
[93480,"AMERICAN COFFE URN","5'TABLE (RGHT)","5'TABLE (RGHT)","5'TABLE W/WTR STATION  & BUILT IN ICE BIN *RIGHT END*","ANCILLARY","ACTIVE","Y",null,null,1189.1344999999999,"ACU",103]
[93512,"AMERICAN COFFE URN","6'TBLE W/WTR","6'TBLE W/WTR","6' TABLE W/WATER STATION/ICEBIN ON RIGHT END AND SINK ON LEFT END","ANCILLARY","ACTIVE","Y",null,null,1490.2850000000001,"ACU",104]
[90421,"AMERICAN COFFE URN","CUSTOM 84\"TABLE","CUSTOM 84\"TABLE","CUSTOM ORDER: 24 X 84 TABLE W/ SINK & FAUCET ON THE RIGHT HAND SIDE","ANCILLARY","ACTIVE","Y",null,null,1656.7245,"ACU",105]
[95680,"AMERICAN COFFE URN","SPECIAL-24\"X24\"","SPECIAL-24\"X24\"","24 X 24 FLAT TOP W/O MIDDLE SHELF  (SPECIAL ORDER)","ANCILLARY","ACTIVE","Y",null,null,463.40399999999994,"ACU",106]
[93710,"AMERICAN COFFE URN","WORK TABLE","WORK TABLE","CUSTOM ORDER: 24 X 36 WORK TABLE W/SHELF & NO SIDES OR BACK","ANCILLARY","ACTIVE","Y",null,null,432.73349999999999,"ACU",107]
[80015,"AL-LEN /CEC","MODEL A","MODEL A","DRIP/COURSE GROUND  6 lb 1.5 to 3.25 oz.","ANCILLARY","ACTIVE","Y",null,null,439.18499999999995,"ALL",109]
[80057,"BLOOMFIELD","3012-SRVRK2F","3012-SRVRK2F","2 AIRPOT SERVING RACK,BLACK,STEEL,PLASTIC DRIP TRAY,FRESH HOT COFFEE","ANCILLARY","ACTIVE","Y",null,null,56.349999999999994,"BLO",111]
[80058,"BLOOMFIELD","3013-SRVRK3F","3013-SRVRK3F","3 AIRPOT SERVING RACK,BLACK,STEEL,PLASTIC DRIP TRAY,FRESH HOT COFFEE","ANCILLARY","ACTIVE","Y",null,null,68.424999999999997,"BLO",112]
[80064,"BLOOMFIELD","7750NS-YGB","7750NS-YGB","2.5 LITER THRML SRVR w/BASE, BLK PLSTC., BREW-THRU LID GRAVITY FLW","ANCILLARY","ACTIVE","Y",null,null,92.574999999999989,"BLO",113]
[80066,"BLOOMFIELD","7752-TGB","7752-TGB","2.5 LITER THRML SRVR w/o BASE,BLK PLSTC,BRW-THRU LID GRAVITY FLW","ANCILLARY","ACTIVE","Y",null,null,69.574999999999989,"BLO",114]
[83170,"BLOOMFIELD","7759-APM","7759-APM","2.2 LITER PUMP AIRPOT W/ECONOMY  BODY AND BRW THRU STEM","ANCILLARY","ACTIVE","Y",null,null,42.837499999999999,"BLO",115]
[80932,"BLOOMFIELD","7874-THS","7874-THS","1.9 LITER SERVER W/S.S. LINER","ANCILLARY","ACTIVE","Y",null,null,36.799999999999997,"BLO",116]
[80091,"BLOOMFIELD","8708DSU","8708DSU","COFFEE WARMER, DOUBLE STEP UP, 120v - 200","ANCILLARY","ACTIVE","Y",null,null,110.1125,"BLO",117]
[95632,"BUNN","36760.0000","36760.0000","36760.0000: 2-POSITION HOPPER RACK","ANCILLARY","ACTIVE","Y",null,null,56.234999999999992,"BUN",119,null,null,null,null,null," "]
[80171,"BUNN","APR5-SERVING RACK","25371.0002","25371.0002 - 5 POSITION BLACK WIRE AIRPOT SERVING RACK - 2 LEVELS","ANCILLARY","ACTIVE","Y",null,null,129.14499999999998,"BUN",120,null,null,null,null,null," "]
[98895,"BUNN","42750.0051","42750.0051","42750.0051: 1.5GL.TF SERVRR BLACK - NO BASE","ANCILLARY","ACTIVE","Y",null,null,257.59999999999997,"BUN",121,null,null,null,null,null," "]
[98453,"BUNN","SH STAND","27825.0000","27825.0000 - 1 SH STAND, 120V","ANCILLARY","ACTIVE","Y",null,null,155.25,"BUN",122,null,null,null,null,null," "]
[81518,"BUNN","1 SH STAND-4\" LEGS","27825.0003","27825.0003 - 1 POSITION SOFT HEAT SERVING STAND-120V-4 LEGS","ANCILLARY","ACTIVE","Y",null,null,170.2,"BUN",123,null,null,null,null,null," "]
[98451,"BUNN","1.5 SH SERVER","27850.0001","27850.0001 - 1.5   GAL. - SH SERVER, TOP HANDLES-S.S.","ANCILLARY","ACTIVE","Y",null,null,348.45,"BUN",124,null,null,null,null,null," "]
[80592,"BUNN","1.5 SH SERVER-60 MIN BLK","27850.0008","27850.0008 - 1.5 GAL.  -  SH SERVER, 45 MIN. - BLACK","ANCILLARY","ACTIVE","Y",null,null,363.4,"BUN",125]
[92063,"BUNN","1.5 SH SERVER (BLACK)","27850.0004","27850.0004  - 1.5  GAL. - SH SERVER,  TOP HANDLES - BLACK","ANCILLARY","ACTIVE","Y",null,null,359.95,"BUN",126]
[80138,"BUNN","1.5GPR-FF TOP HANDLES","20950.0004","1.5 GALLON SERVER, FF,TOP HANDLE","ANCILLARY","ACTIVE","Y",null,null,157.54999999999998,"BUN",127]
[99760,"BUNN","1.5G-TF SRVR","44050.0000","39550.0000 - 1.5 GAL. - THERMAL TF SERVER ","ANCILLARY","ACTIVE","Y",null,null,236.89999999999998,"BUN",128]
[82776,"BUNN","1.75 SH SERVER","27850.0002","27850.0002   1.75  GAL.- SH SERVER - 30 MIN.SETTING-S.S.","ANCILLARY","ACTIVE","Y",null,null,351.9,"BUN",129]
[95678,"BUNN","1.85-LTR,DECAF.","36252.0001","36252.0001 - 1.85 LITER - DECAF. THERMAL CARAFE, ORANGE LID  (1PK)","ANCILLARY","ACTIVE","Y",null,null,66.642499999999998,"BUN",130]
[84411,"BUNN","1.85-LTR SERVER","36029.0001","36029.0001 - 1.85 LITER - BLACK THERMAL CARAFE  (1PK)","ANCILLARY","ACTIVE","Y",null,null,66.642499999999998,"BUN",131]
[84680,"BUNN","10-CUP DECNTR","34116.0001","34116.0001 - 10 CUP COFFEE DECANTER  (1ea)","ANCILLARY","ACTIVE","Y",null,null,8.0384999999999991,"BUN",132]
[84427,"BUNN","10-CUP DECNTR-6","34116.0006","34116.0006 - 10 CUP COFFEE DECANTER  (CS OF 6)","ANCILLARY","ACTIVE","Y",null,null,44.091000000000001,"BUN",133]
[89637,"BUNN","10-CUP DECANTR","20435.0000","20435.0000 - 10 CUP SS COFFEE DECANTER","ANCILLARY","ACTIVE","Y",null,null,7.7739999999999991,"BUN",134]
[80126,"BUNN","12-CUP SS-DECANTER","06026.0000","06026.0000 - 12 CUP SS COFFEE DECANTER","ANCILLARY","ACTIVE","Y",null,null,38.064999999999998,"BUN",135]
[98454,"BUNN","2 SH STAND","27875.0000","27875.0000 -  2 POSITION SOFT HEAT SERVING STAND-120V","ANCILLARY","ACTIVE","Y",null,null,221.95,"BUN",136]
[83204,"BUNN","2.2-LTR AIRPOT","28696.0002","28696.0002 - 2.2 LITER AIRPOTS,   (SINGLE PACK)","ANCILLARY","ACTIVE","Y",null,null,41.342500000000001,"BUN",137]
[80166,"BUNN","2.5-LTR AIRPOT(1)","2.5-LTR AIRPOT(1)","13041.0001 - 2.5 LITER AIRPOTS,   (SINGLE PACK)","ANCILLARY","ACTIVE","Y",null,null,43.642499999999998,"BUN",138]
[96500,"BUNN","2.5-LTR AIRPOT(6)","2.5-LTR AIRPOT(6)","13041.0101 - 2.5 LITER AIRPOTS,   (CASE OF 6)","ANCILLARY","ACTIVE","Y",null,null,234.25499999999997,"BUN",139]
[81544,"BUNN","2.5-LTR AIRPT","32125.0000","32125.0000 AIRPOT, SST 2.5 LITER - EACH","ANCILLARY","ACTIVE","Y",null,null,37.892499999999998,"BUN",140]
[81545,"BUNN","2.5-LTR AIRPT (6)","32125.0100","32125.0100 AIRPOT SST 2.5 LITER - CASE (6)","ANCILLARY","ACTIVE","Y",null,null,220.45499999999998,"BUN",141]
[81566,"BUNN","2.5 THRML SERVER","45882.0000","45882.0000:  THERMAL SERVER 2.5 LITER 6/CS ","ANCILLARY","ACTIVE","Y",null,null,392.95499999999998,"BUN",142]
[92079,"BUNN","2-SH STAND","27875.0003","27875.0003 - 2SH STAND, 120V BLK","ANCILLARY","ACTIVE","Y",null,null,236.89999999999998,"BUN",143]
[82250,"BUNN","3.0-LTR.AIRPOT(1)","32130.0000","32130.0000 AIRPOT, SST 3.0 LITER, SINGLE PACK","ANCILLARY","ACTIVE","Y",null,null,40.192500000000003,"BUN",144]
[84336,"BUNN","3.0-LTR.AIRPOT(6)","32130.0100","32130.0100 AIRPOT, SST 3.0 LITER  (6 PER CASE)","ANCILLARY","ACTIVE","Y",null,null,234.25499999999997,"BUN",145]
[90090,"BUNN","4-POSITION RACK","36760.0001","36760.0001 - 4-POSITION HOPPER RACK","ANCILLARY","ACTIVE","Y",null,null,75.669999999999987,"BUN",146]
[80120,"BUNN","A-10","21250.0000","21250.0000 8 CUP POUROVER, BLACK, PLASTIC FUNNEL","ANCILLARY","ACTIVE","Y",null,null,236.89999999999998,"BUN",147]
[81540,"BUNN","SHORT STAND","35976.0002","35976.0002 BOOSTER, AIRPOT/TS- SHORT","ANCILLARY","ACTIVE","Y",null,null,52.44,"BUN",148]
[96042,"BUNN","BTX-B","38200.0018","38200.0018 - 10-CUP HOME MODEL BREWER W/THERMAL POT","ANCILLARY","ACTIVE","Y",null,null,147.18849999999998,"BUN",149]
[82541,"BUNN","SH-1 DRIP TRAY","26830.0000","26830.0000 - DRIP TRAY SINGLE-SH","ANCILLARY","ACTIVE","Y",null,null,33.004999999999995,"BUN",150]
[83054,"BUNN","27150.0000","27150.0000","27150.0000 - DUAL DRIP TRAY KIT FOR 2 SH STAND","ANCILLARY","ACTIVE","Y",null,null,39.099999999999994,"BUN",151]
[84558,"BUNN","EASY POUR-1","06100.0101","06100.0101 - EASY POUR (BLK)  HNDLE-DECANTER - W/SS BOTTOM  (EACH)","ANCILLARY","ACTIVE","Y",null,null,18.917499999999997,"BUN",152]
[83191,"BUNN","EASY POUR-24","06100.0124","06100.0124 - EASY POUR (BLK)  DECANTER, 24/CS","ANCILLARY","ACTIVE","Y",null,null,426.41999999999996,"BUN",153]
[84708,"BUNN","EASY POUR-3","06100.0103","06100.0103 - EASY POUR  (BLK) DECANTER, 3/CS","ANCILLARY","ACTIVE","Y",null,null,55.372499999999995,"BUN",154]
[84775,"BUNN","EASY POUR-6","06100.0106","06100.0106 - EASY POUR (BLK)  DECANTER, 6/CS","ANCILLARY","ACTIVE","Y",null,null,109.36499999999998,"BUN",155]
[84562,"BUNN","EASY POUR-DECAF-1","06101.0101","06101.0101 - EASY POUR (ORN) HNDLE - DECAF.- DECANTER - W/SS BOTTOM  (EACH)","ANCILLARY","ACTIVE","Y",null,null,18.917499999999997,"BUN",156]
[83192,"BUNN","EASY POUR-DECAF-12","06101.0112","06101.0112 - EASY POUR (ORN) HNDLE - DECAF - DECANTER - 12/CS","ANCILLARY","ACTIVE","Y",null,null,218.72999999999996,"BUN",157]
[83033,"BUNN","EASY POUR-DECAF-3","06101.0103","06101.0103 - EASY POUR (ORN) HNDLE - DECAF - DECANTER - 3/CS","ANCILLARY","ACTIVE","Y",null,null,55.372499999999995,"BUN",158]
[84777,"BUNN","EASY POUR-DECAF-6","06101.0106","06101.0106 - EASY POUR (ORN) HNDLE - DECAF - DECANTER - 6 C/S","ANCILLARY","ACTIVE","Y",null,null,109.36499999999998,"BUN",159]
[96917,"BUNN","H10X-80-240","26300.0000"," 240V/40A 10 GAL HOT WATER #26300.0000","ANCILLARY","ACTIVE","Y",null,null,1345.5,"BUN",160,null,null,null,null,null," "]
[98673,"BUNN","H5X-ELEMENT-120","43600.0026"," 120V/20A 5 GAL HOT WATER HEATER #43600.0026","ANCILLARY","ACTIVE","Y",null,null,758.99999999999989,"BUN",161]
[98681,"BUNN","H5E-ELEMENT-208","43600.0000"," 208V/30A 5 GAL HOT WATER HEATER #43600.0000","ANCILLARY","ACTIVE","Y",null,null,736,"BUN",162]
[97774,"BUNN","H5X-60-208","43600.0002"," 208V/30A 5 GAL BOILER UP TO 212 D #43600.0002","ANCILLARY","ACTIVE","Y",null,null,758.99999999999989,"BUN",163]
[83970,"BUNN","36845.0000","36845.0000","36845.0000 HOPPER/LID ASSEMBLY","NONTAGGED","ACTIVE","Y",null,null,84.179999999999993,"BUN",164]
[91934,"BUNN","HW2","02500.0001","120V/15A 2 GAL HOT WATER #02500.0001 ","ANCILLARY","ACTIVE","Y",null,null,480.7,"BUN",165]
[96617,"BUNN","ICD","33000.0010","33000.0010 - 3 GAL. ICED COFFEE DISPENSER W/JMS LOGO/HANDLES & S.S. LID","ANCILLARY","ACTIVE","Y",null,null,70.149999999999991,"BUN",166]
[93549,"BUNN","ICD-3","33000.0002","33000.0002 - 3 GAL. ICED COFFEE DISPENSER W/HANDLES & S.S. LID","ANCILLARY","ACTIVE","Y",null,null,70.149999999999991,"BUN",167]
[80141,"BUNN","OHW","OHW","02550.0003 - 2 GAL. POUROVER HOT WATER MACHINE -120V","ANCILLARY","ACTIVE","Y",null,null,229.99999999999997,"BUN",168]
[83419,"BUNN","PUMP KIT","12460.0000","12460.0000 - PUMP KIT","ANCILLARY","ACTIVE","Y",null,null,427.10999999999996,"BUN",169]
[80145,"BUNN","RWS1","12203.0010","12203.0010 SAFETY FRESH WMR FOR GPR1/GPR1.5 - w/PLASTIC LEGS  ","ANCILLARY","ACTIVE","Y",null,null,85.1,"BUN",170]
[86125,"BUNN","RWS1 (NICKEL)","12203.0014","12203.0014  -  SATIN NICKEL LEGS, 120V","ANCILLARY","ACTIVE","Y",null,null,108.1,"BUN",171]
[96464,"BUNN","SERVER STAND","SERVER STAND","37675.0001 SERVER STAND, LP","ANCILLARY","ACTIVE","Y",null,null,86.594999999999985,"BUN",172]
[80156,"BUNN","TD4","03250.0003","03250.0003 - 4-GAL.RECTANGULAR DISPNSR W/SGHT GAUGE-SOLID LID","ANCILLARY","ACTIVE","Y",null,null,101.19999999999999,"BUN",173]
[80157,"BUNN","TD4T","TD4T","03250.0005 - 4-GAL.(tall) RECTANGULAR DISP. W/SIGHT GAUGE, BRW THRU LID","ANCILLARY","ACTIVE","Y",null,null,103.49999999999999,"BUN",174]
[97839,"BUNN","TD4T-P","03250.0018","03250.0018 PARADISE CONTAINER W/BREW THRU LID-WITHOUT PARADISE LABEL","ANCILLARY","ACTIVE","Y",null,null,103.49999999999999,"BUN",175]
[84150,"BUNN","TD4T: W/BREW THRU LID","03250.0006","03250.0006 - TD4, W/BREW THRU LID","ANCILLARY","ACTIVE","Y",null,null,103.49999999999999,"BUN",176]
[84643,"BUNN","TD4T-SG","03250.0004","03250.0004 - TD4T SIGHT GAUGE & HANDLES","ANCILLARY","ACTIVE","Y",null,null,103.49999999999999,"BUN",177]
[96473,"BUNN","TDO-3.5","37100.0000","37100.0000 - TDO-3.5,LP RSVR BREW THRU","ANCILLARY","ACTIVE","Y",null,null,57.499999999999993,"BUN",178]
[84289,"BUNN","TDO4-BREW TRU LID","34100.0002","34100.0002 - 3-4 GAL. OVAL ICED TEA CONT..  NO LABEL, BRW THRU LID","ANCILLARY","ACTIVE","Y",null,null,62.099999999999994,"BUN",179]
[82476,"BUNN","TDO4-SOLID LID","34100.0000","34100.0000 - 3-4 GAL. OVAL ICED TEA CONT.,  NO LABEL, W/ SOLID LID","ANCILLARY","ACTIVE","Y",null,null,62.099999999999994,"BUN",180]
[82087,"BUNN","TDO-5","34100.0010","34100.0001 - TDO-5 RESERVOIR","ANCILLARY","ACTIVE","Y",null,null,82.8,"BUN",181]
[96568,"BUNN","TDO-N-3.5","39600.0001","39600.0001 - 3.5 GAL NARROW ICED TEA CONT. ","ANCILLARY","ACTIVE","Y",null,null,80.5,"BUN",182]
[80154,"BUNN","TDS-3","33000.0000","33000.0000 - 3-GAL. ROUND TEA DISPNR.  w/SOLID LID, SIDE HNDLS","ANCILLARY","ACTIVE","Y",null,null,58.65,"BUN",183]
[96771,"BUNN","TDS-5","33000.0001","33000.0001 - 5-GAL. MODERN SERVER","ANCILLARY","ACTIVE","Y",null,null,69,"BUN",184]
[5,"BUNN","TF SERVER","39550.0200","THERMOFRESH 1.5 GALLON/5.7L MECH  GAUGE, SS 39550.0200","ANCILLARY","ACTIVE","N",null,null,225.05499999999998,"BUN",185]
[100793,"BUNN","TF SERVER,1.5G-NO BASE","44050.0050","THERMOFRESH 1.5 GAL NO BASE 44050.0050","ANCILLARY","ACTIVE","Y",null,null,213.89999999999998,"BUN",186]
[90018,"BUNN","TF STAND","38025.0000","38025.0000 - TF STAND","ANCILLARY","ACTIVE","Y",null,null,12.535,"BUN",187]
[96675,"BUNN","TITAN TF SERVER","39400.0001","39400.0001 - TITAN TF SERVER VERTICAL FAUCET THERMA L FRESH SERVER","ANCILLARY","ACTIVE","Y",null,null,302.45,"BUN",188]
[96596,"BUNN","UNIV-6APR","35728.0005","35728.0005 - 6 POSITION BLACK WIRE AIRPOT SERVING RACK - 2 LEVELS","ANCILLARY","ACTIVE","Y",null,null,125.69499999999999,"BUN",189]
[53,"BUNN","VACUUM PITCHER","27350.0001","1.9L VACUUM PITCHER ","ANCILLARY","ACTIVE","Y",null,null,42.664999999999999,"BUN",190]
[80159,"BUNN","WL2-SS","WL2-SS","11402.0001 - TWIN STEP-UP WARMERS, 120V/15AMP 100W-SS DÉCOR","ANCILLARY","ACTIVE","Y",null,null,98.899999999999991,"BUN",191]
[80161,"BUNN","WX1","06450.0004","06450.0004 - SINGLE WARMER -120V/15AMP 100W","ANCILLARY","ACTIVE","Y",null,null,39.099999999999994,"BUN",192]
[80162,"BUNN","WX2","WX2","06310.0004 - TWIN SIDE-BY-SIDE WARMERS, 120V/15AMP","ANCILLARY","ACTIVE","Y",null,null,51.749999999999993,"BUN",193]
[80179,"CAMBRO","1000LCD","1000LCD","10 GAL PLASTIC BEV DISPENSER   BLACK","ANCILLARY","ACTIVE","Y",null,null,241.49999999999997,"CAM",195]
[80178,"CAMBRO","100LCD","100LCD","1 GAL CAMTAINER  BLACK","ANCILLARY","ACTIVE","Y",null,null,126.49999999999999,"CAM",196]
[80181,"CAMBRO","250LCD","250LCD","CAMBRO 2.5 GAL.PLSTC FOAM INS. CONTNR BLACK","ANCILLARY","ACTIVE","Y",null,null,132.25,"CAM",197]
[80182,"CAMBRO","500LCD","500LCD","CAMBRO- 5 GAL PLSTC BEV DISPNSR BLACK","ANCILLARY","ACTIVE","Y",null,null,152.375,"CAM",198]
[97559,"CAMBRO","UC500","UC500","5-GAL. ULTRA CAMTAINERS (GREEN) COLD & HOT BEVERAGES","ANCILLARY","ACTIVE","Y",null,null,175.375,"CAM",199]
[80174,"CAMBRO","CSR3","CSR3","CAMBRO - CAMSERVER 3 GAL  BLACK","ANCILLARY","ACTIVE","Y",null,null,267.375,"CAM",200]
[80175,"CAMBRO","CSR5","CSR5","CAMSERVER  - 5 GAL.  BLACK","ANCILLARY","ACTIVE","Y",null,null,278.875,"CAM",201]
[82181,"CAMBRO","CSR5110","CSR5110","CAMSERVER -  5 GL. BLACK","ANCILLARY","ACTIVE","Y",null,null,278.875,"CAM",202]
[80177,"CAMBRO","R500LCD","R500LCD","500LCD RISER -  BLACK","ANCILLARY","ACTIVE","Y",null,null,51.749999999999993,"CAM",203]
[80209,"CURTIS","AW-1-10","AW-1-10","WARMER, SINGLE 110V ALPHA ","ANCILLARY","ACTIVE","Y",null,null,46,"CUR",205]
[80207,"CURTIS","AW-2-10","AW-2-10","2-STATION ALPHA WRMR, 115V","ANCILLARY","ACTIVE","Y",null,null,54.05,"CUR",206]
[87585,"CURTIS","AW-2-10BLK","AW-2-10BLK","2-STATION BLACK TEXTURE WARMER - 100W WARMER","ANCILLARY","ACTIVE","Y",null,null,60.949999999999996,"CUR",207]
[80208,"CURTIS","AW-2S-10","AW-2S-10","ALPHA 2 STEP UP WARMER","ANCILLARY","ACTIVE","Y",null,null,63.249999999999993,"CUR",208]
[82159,"CURTIS","AW-2S-10BLK","AW-2S-10BLK","WARMER, 2 STATION STEP-UP 120V BLK TEXTURE w/100W WARMER","ANCILLARY","ACTIVE","Y",null,null,126.49999999999999,"CUR",209]
[99957,"CURTIS","AW-3SR-10","AW-3SR-10","3 STATION STEP-UP WARMER, W/ RECEPTACLE - 115V/270W","ANCILLARY","ACTIVE","Y",null,null,169.04999999999998,"CUR",210]
[86364,"CURTIS","CAP-T1PS","CAP-T1PS","STAND, PLASTIC CAP-T25","ANCILLARY","ACTIVE","Y",null,null,33.119999999999997,"CUR",211]
[93444,"CURTIS","CAP-T25","CAP-T25","THERMO COFFEE DISPENSER 2.5L W/SG ","ANCILLARY","ACTIVE","Y",null,null,93.149999999999991,"CUR",212]
[80220,"CURTIS","CAR-2-BLK","CAR-2-BLK","RACK, AIRPOT 2 POSITION BLACK","ANCILLARY","ACTIVE","Y",null,null,50.599999999999994,"CUR",213]
[81666,"CURTIS","CAR-2T-BLK","CAR-2T-BLK","RACK,  AIRPOT 2 POSITIONS TALL BLACK","ANCILLARY","ACTIVE","Y",null,null,65.55,"CUR",214]
[97798,"CURTIS","CAR-3-BLK","CAR-3-BLK","RACK,  AIRPOT 3 POSITION BLACK","ANCILLARY","ACTIVE","Y",null,null,60.949999999999996,"CUR",215]
[80221,"CURTIS","CAR-4-BLK","CAR-4-BLK","RACK,  AIRPOT 4 POSITION BLACK","ANCILLARY","ACTIVE","Y",null,null,97.749999999999986,"CUR",216]
[80222,"CURTIS","CAR-6-BLK","CAR-6-BLK","RACK,  AIRPOT 6 POSITION BLACK","ANCILLARY","ACTIVE","Y",null,null,126.49999999999999,"CUR",217]
[87692,"CURTIS","CLXP6401S100","CLXP6401S100","POURPOT, 1.9L,  8H, SS SERVER - CURTIS","ANCILLARY","ACTIVE","Y",null,null,24.84,"CUR",218]
[84429,"CURTIS","CLXP6401S100D","CLXP6401S100D","POURPOT, 1.9L,  8H, SS SERVER - CURTIS  DECAF","ANCILLARY","ACTIVE","Y",null,null,24.84,"CUR",219]
[61,"CURTIS","DT-08","DT-08","8 DRIP TRAY","ANCILLARY","ACTIVE","Y",null,null,25.253999999999998,"CUR",220,null,null,null,null,null," "]
[114,"CURTIS","DT-15","DT-15","15 DRIP TRAY","ANCILLARY","ACTIVE","Y",null,null,33.637499999999996,"CUR",221,null,null,null,null,null," "]
[92240,"CURTIS","DTP20","DTP20","20 DRIP TRAY PLASTIC/SS","NONTAGGED","ACTIVE","Y",null,null,18.112499999999997,"CUR",222]
[80241,"CURTIS","SCGEM-3","SCGEM-3","1.5 GAL GEM-3 SATELLITE SERVER HEATED","ANCILLARY","ACTIVE","Y",null,null,150.64999999999998,"CUR",223,null,null,null,null,null," "]
[80250,"CURTIS","SCGEM-3D","SCGEM-3D","GEM-3D 1.5 GAL W/DECAF FAUCET (ORANGE)","ANCILLARY","ACTIVE","Y",null,null,150.64999999999998,"CUR",224,null,null,null,null,null," "]
[80237,"CURTIS","SCGEM-3-5","SCGEM-3-5","GEM-3&5 SATELLITE & WARMER STAND 115V","ANCILLARY","ACTIVE","Y",null,null,216.2,"CUR",225,null,null,null,null,null," "]
[80244,"CURTIS","SCGEM-3-01","SCGEM-3-01","1.5 GAL GEM-3-01 ","ANCILLARY","ACTIVE","Y",null,null,150.64999999999998,"CUR",226,null,null,null,null,null," "]
[80238,"CURTIS","SCGEM-3D & 5","SCGEM-3D & 5","GEM-3D&5 GEM-3 DECAF AND WARMER","ANCILLARY","ACTIVE","Y",null,null,216.2,"CUR",227]
[80247,"CURTIS","SCGEM-5","SCGEM-5","GEM-5 SATELLITE WARMER STAND-115V","ANCILLARY","ACTIVE","Y",null,null,78.199999999999989,"CUR",228]
[80249,"CURTIS","SCGEM-8","SCGEM-8","GEM-8 SATELLITE MINI WARMER STAND-115V","ANCILLARY","ACTIVE","Y",null,null,78.199999999999989,"CUR",229]
[91207,"CURTIS","SCMCV-10","SCMCV-10","CURTIS - MERCURY COFFEE VESSEL 115V","ANCILLARY","ACTIVE","Y",null,null,914.24999999999989,"CUR",230]
[91215,"CURTIS","MCVC-1","MCVC-1","MERCURY CART FOR MWM-10","ANCILLARY","ACTIVE","Y",null,null,569.25,"CUR",231]
[80270,"CURTIS","SCTC-3H-02","SCTC-3H-02","3 GAL. TEA DISPENSER W/HANDLES: W/CURTIS LOGO","ANCILLARY","ACTIVE","Y",null,null,70.149999999999991,"CUR",232]
[80264,"CURTIS","SCTCO308B000","SCTCO308B000","TEA CONTAINER OVAL 3 GAL 8 1/2 JMS.SPECS & CURTIS LOGO - W/WC-38157","ANCILLARY","ACTIVE","Y",null,null,83.949999999999989,"CUR",233]
[92313,"CURTIS","SCTCO308B070","SCTCO308B070","TEA CONTAINER OVAL 3 GAL 8 1/2 W/WC-39567 - PICKWICK","ANCILLARY","ACTIVE","Y",null,null,85.1,"CUR",234]
[92156,"CURTIS","SCTCO308B070K","SCTCO308B070K","TEA CONTAINER OVAL 3 GAL. PICKWICK W/WC-33001-101 BREW CONE & WC-39566 PTT BOTTOM LABEL","ANCILLARY","ACTIVE","Y",null,null,269.09999999999997,"CUR",235]
[80261,"CURTIS","SCTCO308BRS000","SCTCO308BRS000","TEA CONTAINER OVAL 3 GAL 8 1/2 BRU THRU LID W/STAND-JMS SPECS","ANCILLARY","ACTIVE","Y",null,null,154.1,"CUR",236]
[92234,"CURTIS","SCTCO308BRS070","SCTCO308BRS070","TEA CONTAINER OVAL 3 GAL 8 1/2 BRU-THRU LID W/STAND PICKWICK","ANCILLARY","ACTIVE","Y",null,null,169.04999999999998,"CUR",237]
[87245,"CURTIS","SCTCO417B000","SCTCO417B000","TEA CONTAINER OVAL 4 GAL 17 JMS SPECS & CURTIS LOGO ","ANCILLARY","ACTIVE","Y",null,null,86.25,"CUR",238]
[87250,"CURTIS","SCTCO421B000","SCTCO421B000","TEA CONTAINER OVAL 4 GAL. 21 JMS SPECS W/CURTIS LOGO ","ANCILLARY","ACTIVE","Y",null,null,90.85,"CUR",239]
[95782,"CURTIS","SCTCO421B003","SCTCO421B003","TEA CONTAINER OVAL  4-GAL. 21 w/WC-XXXXX MARYLAND CLUB LOGO","ANCILLARY","ACTIVE","Y",null,null,103.49999999999999,"CUR",240]
[92315,"CURTIS","SCTCO421B070","SCTCO421B070","TEA CONTAINER OVAL 4 GAL 21  W/WC-39568 - PICKWICK","ANCILLARY","ACTIVE","Y",null,null,95.449999999999989,"CUR",241]
[92154,"CURTIS","SCTCO421B070K","SCTCO421B070K","TEA CONTAINER OVAL 4 GAL 21 PICKWICK W/WC-33001-101 BREW CONE","ANCILLARY","ACTIVE","Y",null,null,151.79999999999998,"CUR",242]
[87320,"CURTIS","SCTCOP308B000","SCTCOP308B000","TEA CONTAINER OVAL 3 GAL 8 1/2 PARADISE LOGO W/WC-38121","ANCILLARY","ACTIVE","Y",null,null,83.949999999999989,"CUR",243]
[80338,"CURTIS","SCTCOP308BRS000","SCTCOP308BRS000","TEA CONTAINER OVAL 3 GAL 8 1/2 PARADISE LOGO,  BRU-THRU LID W/STAND","ANCILLARY","ACTIVE","Y",null,null,154.1,"CUR",244]
[87243,"CURTIS","SCTCOP417B000","SCTCOP417B000","TEA CONTAINER OVAL 4 GAL 17 PARADISE LOGO,  W/WC-38115","ANCILLARY","ACTIVE","Y",null,null,90.85,"CUR",245]
[87249,"CURTIS","SCTCOP421B000","SCTCOP421B000","TEA CONTAINER OVAL 4 GAL 21 PARADISE LOGO, W/WC-38111","ANCILLARY","ACTIVE","Y",null,null,95.449999999999989,"CUR",246]
[92223,"CURTIS","SCTCORS070","SCTCORS070","STAND, REMOTE TCO PICKWICK","ANCILLARY","ACTIVE","Y",null,null,100.05,"CUR",247]
[80266,"CURTIS","SW-1","SW-1","30W 120V .25A 1PH 2W+G 60HZ SYRUP WARMR 1GAL ","ANCILLARY","ACTIVE","Y",null,null,123.05,"CUR",248]
[80268,"CURTIS","SW-2","SW-2","100W 120V .83A 1PH 2W+G 60HZ SYRUP WARMER 2GAL W/WC-1820","ANCILLARY","ACTIVE","Y",null,null,181.7,"CUR",249]
[98446,"CURTIS","TC-10H","TC-10H","TEA DISPENSER, 10 GAL W/HANDLES TC-10","ANCILLARY","ACTIVE","Y",null,null,140.875,"CUR",250]
[99767,"CURTIS","TC15RS","TC15RS","TEA CONTAINER NARROW 3.5 GAL 22.125 BLACK FAUCET","ANCILLARY","ACTIVE","Y",null,null,40.25,"CUR",251]
[99757,"CURTIS","TC15S","TC15S","1.5-GAL. TEA DISPENSER ROUND STACKABLE","ANCILLARY","ACTIVE","Y",null,null,64.399999999999991,"CUR",252]
[80269,"CURTIS","TC-2H","TC-2H","2 GAL. TEA - DISPENSER W/HANDLES -  CURTIS LOGO","ANCILLARY","ACTIVE","Y",null,null,67.849999999999994,"CUR",253]
[80272,"CURTIS","TC-3H","TC-3H","ROUND 3 GAL. TEA DISPENSER W/HANDLES - CURTIS LOGO","ANCILLARY","ACTIVE","Y",null,null,54.05,"CUR",254]
[97786,"CURTIS","TC-3HS","TC-3HS","3 GAL 19-14 HIGH (SHORT) - TEA DISPENSER W/ CURTIS LOGO","ANCILLARY","ACTIVE","Y",null,null,54.05,"CUR",255]
[80273,"CURTIS","TC-3H-SG","TC-3H-SG","3 GAL. ICED TEA DISPENSER  - SITE GLASS","ANCILLARY","ACTIVE","Y",null,null,72.449999999999989,"CUR",256]
[80274,"CURTIS","TC-5H","TC-5H","5 GAL. ICED TEA DISPENSER  W/HANDLES ","ANCILLARY","ACTIVE","Y",null,null,67.849999999999994,"CUR",257]
[80276,"CURTIS","TC-5H-S","TC-5H-S","5 GAL. ICED TEA DISPENSER  W/HANDLES  (SHORT)","ANCILLARY","ACTIVE","Y",null,null,73.599999999999994,"CUR",258]
[80282,"CURTIS","TC-5H-SG","TC-5H-SG","5 GAL. ICED TEA DISPENSER - SITE GLASS","ANCILLARY","ACTIVE","Y",null,null,93.149999999999991,"CUR",259]
[92177,"CURTIS","TCN051","TCN051","TEA CONTAINER NARROW 3.5 GAL 22.125 CURTIS BRANDED ","ANCILLARY","ACTIVE","Y",null,null,87.399999999999991,"CUR",260]
[90170,"CURTIS","TCN001","TCN001","TEA CONTAINER NARROW 3.5 GAL 22.125 NO BRANDING ","ANCILLARY","ACTIVE","Y",null,null,93.149999999999991,"CUR",261]
[87429,"CURTIS","TCO308A000","TCO308A000","TEA CONTAINER OVAL 3 GAL 8 1/2 JMS SPECS W/WC-38102 & CURTIS LOGO","ANCILLARY","ACTIVE","Y",null,null,83.949999999999989,"CUR",262]
[81040,"CURTIS","TCO308A001","TCO308A001","TEA CONTAINER OVAL 3 GAL 8 1/2 JMS SPECS NO LOGO OR STAND","ANCILLARY","ACTIVE","Y",null,null,83.949999999999989,"CUR",263]
[87445,"CURTIS","TCO417A000","TCO417A000","4 GAL. OVAL TEA DISPENSER - 17 JMS SPECS W/ CURTIS LOGO","ANCILLARY","ACTIVE","Y",null,null,87.399999999999991,"CUR",264]
[93489,"CURTIS","TCO419A001","TCO419A001","TEA CONTAINER OVAL 4 GAL 19 W/ NO LABEL -- CURTIS OR CUSTOM BRANDED","ANCILLARY","ACTIVE","Y",null,null,79.349999999999994,"CUR",265]
[87460,"CURTIS","TCO421A000","TCO421A000","TEA CONTAINER OVAL 4 GAL 21 JMS SPECS-CURTIS LOGO, W/WC-38103","ANCILLARY","ACTIVE","Y",null,null,106.94999999999999,"CUR",266]
[88917,"CURTIS","TCO421A001","TCO421A001","TEA CONTAINER OVAL 4 GAL 21  BLACK FAUCET - W/OUT LOGO","ANCILLARY","ACTIVE","Y",null,null,90.85,"CUR",267]
[91201,"CURTIS","TCOC421G000","TCOC421G000","TEA CONTAINER OVAL 4 GAL 21  ICED COFFEE LABEL","ANCILLARY","ACTIVE","Y",null,null,87.399999999999991,"CUR",268]
[80284,"CURTIS","TCORS000","TCORS000","TEA TOTER REMOTE STAND S.S. ","ANCILLARY","ACTIVE","Y",null,null,69,"CUR",269]
[98520,"CURTIS","TLCG1509S000","TLCG1509S000","GRAVITY POT, 1.5 GAL S.S. BODY S.S. LINER MILANO STYLE","ANCILLARY","ACTIVE","Y",null,null,289.79999999999995,"CUR",270]
[83747,"CURTIS","TLSA200","TLSA200","STAND, 9.25W x 9.5L x 10.5H","ANCILLARY","ACTIVE","Y",null,null,24.84,"CUR",271]
[85270,"CURTIS","TLXA0101S000","TLXA0101S000","TLXA0101S000 1 GAL AP (3.8LTR)","ANCILLARY","ACTIVE","Y",null,null,44.849999999999994,"CUR",272]
[85834,"CURTIS","TLXA2201G000","TLXA2201G000","2.2L, AIRPOT - SS BODY GLASS LINER","ANCILLARY","ACTIVE","Y",null,null,22.77,"CUR",273]
[85840,"CURTIS","TLXA2201G000D","TLXA2201G000D","2.2L, AIRPOT - SS BODY GLASS LINER - DECAF","ANCILLARY","ACTIVE","Y",null,null,22.77,"CUR",274]
[85836,"CURTIS","TLXA2203G000","TLXA2203G000","2.2L, AIRPOT - BLACK BODY GLASS LINER","ANCILLARY","ACTIVE","Y",null,null,22.77,"CUR",275]
[85844,"CURTIS","TLXA2203G000D","TLXA2203G000D","AIRPOT, 2.2 LITER CURTIS - DECAF.","ANCILLARY","ACTIVE","Y",null,null,22.77,"CUR",276]
[84645,"CURTIS","TLXA2203S000","TLXA2203S000","AIRPOT,2.2L BLK BODY,S.S. LINER, LEVER PUMP - CURTIS","ANCILLARY","ACTIVE","Y",null,null,31.049999999999997,"CUR",277]
[80591,"CURTIS","TLXA2203S000D","TLXA2203S000D","AIRPOT,2.2L BLK BODY,S.S. LINER, LEVER PUMP - DECAF - CURTIS","ANCILLARY","ACTIVE","Y",null,null,31.049999999999997,"CUR",278]
[96813,"CURTIS","TLXA2204G000","TLXA2204G000","AIRPOT,2.2L BLUE BODY GLASS LINER LEVER PUMP CURTIS","ANCILLARY","ACTIVE","Y",null,null,22.77,"CUR",279]
[85838,"CURTIS","TLXA2206G000","TLXA2206G000","2.2L, AIRPOT - RED BODY GLASS LINER LEVER PUMP CURTIS","ANCILLARY","ACTIVE","Y",null,null,22.77,"CUR",280]
[85423,"CURTIS","TLXA2501S000","TLXA2501S000","AIRPOT, 2.5L S.S. BODY S.S.-LINER LEVER PUMP - CURTIS  (2/23/05)","ANCILLARY","ACTIVE","Y",null,null,29.784999999999997,"CUR",281,null,null,null,null,null," "]
[90388,"CURTIS","TLXA3001S000","TLXA3001S000","AIRPOT, 3.0 LITER S.S. BODY LINER LEVER PUMP - CURTIS","ANCILLARY","ACTIVE","Y",null,null,39.33,"CUR",282]
[87718,"CURTIS","TLXP1201S000","TLXP1201S000","1.2 L POURPOT, S.S. BODY, S.S. LINED","ANCILLARY","ACTIVE","Y",null,null,26.909999999999997,"CUR",283]
[87719,"CURTIS","TLXP1201S000D","TLXP1201S000D","1.2 L POURPOT, S.S. BODY, S.S. LINED - DECAF TOP","ANCILLARY","ACTIVE","Y",null,null,26.909999999999997,"CUR",284]
[87726,"CURTIS","TLXP1901S000","TLXP1901S000","POURPOT, 1.9L,  11.4H,  SS SERVER (BREW THRU) ","ANCILLARY","ACTIVE","Y",null,null,31.049999999999997,"CUR",285]
[100625,"CURTIS","TLXP1901S000D","TLXP1901S000D","POURPOT, 1.9L,  11.4H,  SS SERVER (BREW THRU)  DECAF","ANCILLARY","ACTIVE","Y",null,null,31.049999999999997,"CUR",286]
[100733,"CURTIS","TXSG0301S200","TXSG0301S200","GRAVITY POT 3 GALLON FOR OMEGA SYSTEM","ANCILLARY","ACTIVE","Y",null,null,322,"CUR",287]
[99752,"CURTIS","TXSG0101S200","TXSG0101S200","GRAVITY POT, 1 GAL S.S. BODY S.S. LINER CURTIS W/O BASE","ANCILLARY","ACTIVE","Y",null,null,229.99999999999997,"CUR",288]
[100010,"CURTIS","TXSG0101S600","TXSG0101S600","GRAVITY POT, 1 GAL S.S. BODY S.S. LINER CURTIS WITH BASE","ANCILLARY","ACTIVE","Y",null,null,238.04999999999998,"CUR",289,null,null,null,null,null," "]
[90477,"CURTIS","TXSG1501S600","TXSG1501S600","1.5 - GAL. STANDARD NON - BRANDED GRAVITY SERVER W/BASEFOR THERMOPRO","ANCILLARY","ACTIVE","Y",null,null,217.35,"CUR",290]
[98764,"CURTIS","WB-10-12","WB-10-12","220V/40A 10 GAL HOT WATER BOILER","ANCILLARY","ACTIVE","Y",null,null,1144.25,"CUR",291,null,null,null,null,null," "]
[94417,"CURTIS","WB-14-12","WB-14-12","220V/40A 14 GAL HOT WATER BOILER","ANCILLARY","ACTIVE","Y",null,null,1483.4999999999998,"CUR",292,null,null,null,null,null," "]
[94801,"CURTIS","WB-14-60","WB-14-60","220V/50-60HZ 1 PHASE 14 GAL HOT WATER BOILER","ANCILLARY","ACTIVE","Y",null,null,1489.2499999999998,"CUR",293]
[98626,"CURTIS","WB5GT63000","WB5GT63000","5-GAL. WATER BOILER G3 CURTIS, 1500/5000 w/120/220v","ANCILLARY","ACTIVE","Y",null,null,736,"CUR",294,null,null,null,null,null," "," "]
[92560,"CURTIS","WC3316","WC3316","DELUXE BREW CONE, W/HANDLE ASSY 7.1D W/WC-3317 & WC-3323 ALP/AP","ANCILLARY","ACTIVE","Y",null,null,32.084999999999994,"CUR",295,null,null,null,null,null," "]
[89473,"CURTIS","WC-37335","WC-37335","KIT, BREW CONE ASSY. BLACK TEA LABELER FOR THE GOURMET BREW CONE","ANCILLARY","ACTIVE","Y",null,null,97.439499999999995,"CUR",298]
[99773,"CURTIS","WC-37336","WC-37336","TCT BASE CONVERSION FOR NARROW CONT. - 2 POSITION","ANCILLARY","ACTIVE","Y",null,null,78.038999999999987,"CUR",299,null,null,null,null,null," "]
[99774,"CURTIS","WC-37337","WC-37337","TCT BASE CONVERSION FOR NARROW CONT. - 3 POSITION","ANCILLARY","ACTIVE","Y",null,null,83.26,"CUR",300]
[92173,"CURTIS","WC61225","WC61225","AIRPOT PLATFORM  ASSEMBLY FOR  THERMOPRO UNIT ","ANCILLARY","ACTIVE","Y",null,null,88.802999999999997,"CUR",301]
[80586,"CURTIS","WR2B0000","WR2B0000","2-POSITION VINYL COATED WIRE RACKS","ANCILLARY","ACTIVE","Y",null,null,28.462499999999999,"CUR",302]
[80585,"CURTIS","WR3B0000","WR3B0000","THREE POSITION, VINYL COATED, MERCHANDISING CHANNEL","ANCILLARY","ACTIVE","Y",null,null,44.274999999999999,"CUR",303]
[80690,"CURTIS","WR4B0000","WR4B0000","FOUR POSITION, VINYL COATED, MERCHANDISING CHANNEL","ANCILLARY","ACTIVE","Y",null,null,52.9,"CUR",304]
[80704,"CURTIS","WR6B0000","WR6B0000","SIX POSITION, VINYL COATED, MERCHANDISING CHANNEL","ANCILLARY","ACTIVE","Y",null,null,89.699999999999989,"CUR",305]
[99755,"CURTIS","WS1","WS1","SINGLE WIRE STAND, TXSG SERVER W/O BASE","ANCILLARY","ACTIVE","Y",null,null,50.599999999999994,"CUR",306]
[80720,"FETCO","D03700000","D03700000","D037 - 1.9 - LITER S.S. SERVER - REGULAR COFFEE  (EACH)","ANCILLARY","ACTIVE","Y",null,null,36.799999999999997,"FET",308]
[80722,"FETCO","1.9 LTR.-DECAF.","D0370","D037 - 1.9 - LITER S.S. SERVER - DECAF. COFFEE  (orange lid) (EACH)","ANCILLARY","ACTIVE","Y",null,null,36.799999999999997,"FET",309]
[82092,"FETCO","BS-2","A010","BS-2 9 AIRPOT BREW STAND","ANCILLARY","ACTIVE","Y",null,null,54.05,"FET",310]
[99758,"FETCO","A034","A034","2-STATION AIRPOT RACK","ANCILLARY","ACTIVE","Y",null,null,54.05,"FET",311]
[99153,"FETCO","A066","A066","EXTRA 5 LB. HOPPER FOR GR-2 W/LID","ANCILLARY","ACTIVE","Y",null,null,93.149999999999991,"FET",312]
[83602,"FETCO","A118","A118","HOPPER RACK (LEFT SIDE)","ANCILLARY","ACTIVE","Y",null,null,28.749999999999996,"FET",313]
[82083,"FETCO","D041","D041","3.0 LT. SS LINED LEVER AIRPOT EACH","ANCILLARY","ACTIVE","Y",null,null,57.499999999999993,"FET",314]
[82088,"FETCO","D055","D055","1.9 LT. SS LINED NISSAN AIRPOT - EACH","ANCILLARY","ACTIVE","Y",null,null,47.15,"FET",315]
[90083,"FETCO","HWB-25","HWB-25","25-GL. HOT WATER BOILER, H25021-120/208-240/3PH","ANCILLARY","ACTIVE","Y",null,null,1838.85,"FET",316]
[87312,"FETCO","ITD-30","D031","D0310:  3.0-GAL. ICE TEA/COFFEE CONTAINER FOR THE TBS-21","ANCILLARY","ACTIVE","Y",null,null,121.89999999999999,"FET",317]
[81757,"FETCO","L3D-10","D048","1.0 GAL DIGITAL GAUGE DISPENSER w/ STAND & BUILT IN DRIP TRAY","ANCILLARY","ACTIVE","Y",null,null,244.95,"FET",318]
[80928,"FETCO","L3D-10D","L3D-10D","1.0 GAL DIGITAL GAUGE DISPENSER - W/ DECAF . HANDLE / STAND & BUILT IN DRIP TRAY","ANCILLARY","ACTIVE","Y",null,null,244.95,"FET",319]
[81762,"FETCO","L3D-15","D049","1.5 GAL DIGITAL GAUGE DISPENSER","ANCILLARY","ACTIVE","Y",null,null,295.54999999999995,"FET",320]
[99956,"FETCO","L3D-15D","L3D-15D","1.5 GAL DIGITAL GAUGE DISPENSER - DECAF.","ANCILLARY","ACTIVE","Y",null,null,295.54999999999995,"FET",321]
[81764,"FETCO","L3D-20","D0500000","2.0 GAL DIGITAL GAUGE DISPENSER  D050","ANCILLARY","ACTIVE","Y",null,null,331.2,"FET",322]
[94054,"FETCO","L3D-20D","D0500D","2.0 GAL DIGITAL GAUGE DISPENSER - DECAF.","ANCILLARY","ACTIVE","Y",null,null,331.2,"FET",323]
[82014,"FETCO","L3S-15","D05200000","1.5 GAL DIGITAL GAUGE SERVER - NO BASE","ANCILLARY","ACTIVE","Y",null,null,272.54999999999995,"FET",324]
[92124,"FETCO","LBD-6","LBD-6","6-GAL. CONTAINER ONLY ","ANCILLARY","ACTIVE","Y",null,null,830.3,"FET ",325]
[99960,"FETCO","LBD-6C","D020","6-GAL. MOBILE LUXUS DISPENSER FOR CBS-72AC BREWERS","ANCILLARY","ACTIVE","Y",null,null,2018.2499999999998,"FET",326]
[93507,"FETCO","LBD-18C","D021","18-GAL. HOLDING TANK W/CART","ANCILLARY","ACTIVE","Y",null,null,3753.6,"FET",327]
[93509,"FETCO","LBD-24C","D022","24-GAL. HOLDING TANK W/CART","ANCILLARY","ACTIVE","Y",null,null,4271.0999999999995,"FET ",328]
[81798,"FETCO","L3S-10","D05100000","1.0 GAL DIGITAL GAUGE SERVER - NO BASE","ANCILLARY","ACTIVE","Y",null,null,228.85,"FET",329]
[82020,"FETCO","S3S-10-1","A093","1.0 SINGLE SERVING STAND A093","ANCILLARY","ACTIVE","Y",null,null,79.349999999999994,"FET",330]
[82031,"FETCO","S3S-10-2","A094","1.0 TWIN SERVING STAND A094","ANCILLARY","ACTIVE","Y",null,null,133.39999999999998,"FET",331,null,null,null,null,null," "]
[82034,"FETCO","S3S-10-3","A096","1.0 TRIPLE SERVING STAND A096","ANCILLARY","ACTIVE","Y",null,null,184,"FET",332]
[82051,"FETCO","S3S-15/20-1","A097","2.0 SINGLE SERVING STAND","ANCILLARY","ACTIVE","Y",null,null,88.55,"FET",333]
[82068,"FETCO","S3S-15/20-2","A098","2.0 DUAL SERVING STAND","ANCILLARY","ACTIVE","Y",null,null,148.35,"FET",334]
[82082,"FETCO","S3S-15/20-3","A099","2.0 TRIPLE SERVING STAND ","ANCILLARY","ACTIVE","Y",null,null,205.85,"FET",335]
[80307,"FETCO","TPD-15","D009","TPD 1.5 GALLON  LUXUS THERMAL DISP.","ANCILLARY","ACTIVE","Y",null,null,292.19200000000001,"FET",336]
[84663,"FETCO","TPD-15D","TPD-15D","TPD 1.5 GALLON  LUXUS THERMAL DISP. - W/DECAF. HANDLE","ANCILLARY","ACTIVE","Y",null,null,289.79999999999995,"FET",337]
[80308,"FETCO","TPD-30","D012","TPD 3.0 GALLON  LUXUS THERMAL DISP.","ANCILLARY","ACTIVE","Y",null,null,359.95,"FET",338]
[91535,"FETCO","Z017","Z017","MARITIME PACKAGE - CONTAINS SPECIAL LEGS AND RING","ANCILLARY","ACTIVE","Y",null,null,290.95,"FET",339]
[96661,"GRI/ AMW/ CRA","70657","70657","RACK ONLY - 6 POT = (2) 3 POT WIDE RACKS + (1) 3 POT WIDE RISER","ANCILLARY","ACTIVE","Y",null,null,167.15249999999997,"GRI",341]
[93268,"GRI/ AMW/ CRA","70659","70659","2-AIRPOT WIDE RACK - SIDE BY SIDE","ANCILLARY","ACTIVE","Y",null,null,146.39499999999998,"GRI",342]
[80346,"GRI/ AMW/ CRA","70757","70757","RACK W/6 LEVER TOP POTS (2) 3 POT WIDE RACKS + (1) 3 POT RISER","ANCILLARY","ACTIVE","Y",null,null,322.28749999999997,"GRI",343]
[80926,"GRI/ AMW/ CRA","70758","70758","4-POT RACK W/ RISER (2 TOP/2 BOTTOM) W/ 4 - 2.2 LITER REG. AIRPOTS","ANCILLARY","ACTIVE","Y",null,null,270.94,"GRI",344]
[90491,"GRI/ AMW/ CRA","70762-C","70762-C","2.2L - GLASS LINED, LEVER TOP AIRPOTS, BLACK TOP (CASE OF 6)","ANCILLARY","ACTIVE","Y",null,null,164.96749999999997,"GRI",345]
[97453,"GRI/ AMW/ CRA","70762","70762","2.2L - GLASS LINED, LEVER TOP AIRPOTS, BLACK TOP (EACH)","ANCILLARY","ACTIVE","Y",null,null,26.22,"GRI",346]
[97458,"GRI/ AMW/ CRA","70767","70767","2.2L - GLASS LINED, LEVER TOP AIRPOTS, ORANGE TOP (EACH)","ANCILLARY","ACTIVE","Y",null,null,26.22,"GRI",347]
[80031,"GRI/ AMW/ CRA","AP-3","AP-3","3-LITER AIRPOT","ANCILLARY","ACTIVE","Y",null,null,53.532499999999992,"GRI",348,null,null,null,null,null," "]
[91148,"GRI/ AMW/ CRA","BW-2SU","BW-2SU","2-STEP UP WARMERs, S.S. w/BLACK WARMERS, 115V","ANCILLARY","ACTIVE","Y",null,null,72.105000000000004,"GRI",349]
[80024,"GRI/ AMW/ CRA","CS-LL","CS-LL","1.5 - GAL. SHUTTLE W/ LOCKING LID","ANCILLARY","ACTIVE","Y",null,null,194.46499999999997,"GRI",350]
[80038,"GRI/ AMW/ CRA","CW-1","CW-1","BASE WARMER FOR 1 1/2 GAL. SHUTTLE","ANCILLARY","ACTIVE","Y",null,null,108.15749999999998,"GRI",351]
[97097,"GRI/ AMW/ CRA","HWD2","HWD2","HWD2: 120V/15A 2-GAL.HOT WATER","ANCILLARY","ACTIVE","Y",null,null,556.08249999999998,"GRI",352]
[80186,"GRI/ AMW/ CRA","S3","S3","3-GAL. S.S. ICE-TEA DISPENSER","ANCILLARY","ACTIVE","Y",null,null,86.30749999999999,"GRI",353]
[80734,"GRI/ AMW/ CRA","S10","S10","10-GAL. S.S. ICE TEA DISPENSER W/SIGHT GLASS","ANCILLARY","ACTIVE","Y",null,null,173.70750000000001,"GRI",354]
[80189,"GRI/ AMW/ CRA","T1W","T1W","3GL. PLASTIC ICE-TEA DISPENSER","ANCILLARY","ACTIVE","Y",null,null,71.012499999999989,"GRI",355]
[80654,"GRI/ AMW/ CRA","AVS-1.5A","AVS-1.5A","SHUTTLE FOR THE VSB-430 UNIT     ","ANCILLARY","ACTIVE","Y",null,null,268.75499999999994,"GRI",356]
[80693,"GRI/ AMW/ CRA","VS-S","VS-S","STAND FOR THE VSB-430 UNIT","ANCILLARY","ACTIVE","Y",null,null,43.699999999999996,"GRI",357]
[100966,"MARK POWERS","BW4000-000A","BW4000-000A","FLOW-JET ELECTRIC PUMPSYSTEM FOR WATER BOTTLES","NONTAGGED","ACTIVE","Y",null,null,111.55,"MAR",359]
[96145,"NEWCO","100751","100751","1.0-GAL. HEAT ASSISTED DISPENSER, RED HANDLE - HOT","ANCILLARY","ACTIVE","Y",null,null,87.112499999999997,"NEW",361]
[80368,"NEWCO","100751-6","100751-6","NEWTAP, 1GAL. FAUCET","ANCILLARY","ACTIVE","Y",null,null,92,"NEW",362]
[89715,"NEWCO","109356","109356","1.9 LITER THERMAL SERVER TALL-W/BREW THRU LID-STAINLESS STEEL FINISH (was part # 110573)","ANCILLARY","ACTIVE","Y",null,null,29.9,"NEW",363]
[80376,"NEWCO","110255","110255","1.9 LITER DIAGONAL PATTERN SILVER FINISH: BRW THRU STEM,LEVER STYLE","ANCILLARY","ACTIVE","Y",null,null,60.374999999999993,"NEW",364]
[90370,"NEWCO","110583","110583","2-POT AIRPOT RACK ONLY-SIDE BY SIDE (H9xW14 7/8xD12 3/8)","ANCILLARY","ACTIVE","Y",null,null,36.224999999999994,"NEW",365]
[82137,"NEWCO","110660","110660","2.2 GAL - STAND, THERMAL DISPENSER (SHORT - 14 3/4)","ANCILLARY","ACTIVE","Y",null,null,96.312499999999986,"NEW",366]
[81322,"NEWCO","111445","111445","1.9 THERMAL SERVER - SHORT W/BREW THRU LID STAINLESS STEEL FINISH","ANCILLARY","ACTIVE","Y",null,null,27.887499999999999,"NEW",367]
[87211,"NEWCO","120817","120817","2.2 LITER AIRPOT W/ STAINLESS STEEL BODY - PUSH BUTTON","ANCILLARY","ACTIVE","Y",null,null,28.174999999999997,"NEW",368]
[87212,"NEWCO","120818","120818","2.2 LITER AIRPOT W/ STAINLESS STEEL BODY LEVER TOP","ANCILLARY","ACTIVE","Y",null,null,26.737499999999997,"NEW",369]
[90369,"NEWCO","700595","700595","2.2 LITER-DIAGONAL PATTERN SILVER FINISH: BREW-THRU STEM,LEVER STYLE","ANCILLARY","ACTIVE","Y",null,null,60.374999999999993,"NEW",370]
[90366,"NEWCO","701505","701505","G-15  1.5 GAL. NEWCO - BLACK","ANCILLARY","ACTIVE","Y",null,null,182.85,"NEW",371]
[90367,"NEWCO","700485","700485","G-15, 1.5 GAL. HEAT ASSISTED - SS SATELLITE ","ANCILLARY","ACTIVE","Y",null,null,179.39999999999998,"NEW",372]
[83384,"NEWCO","100751-3","100751-3","1-GAL. NEWTAPS - S/S SERVER W/FAUCET - 100751","ANCILLARY","ACTIVE","Y",null,null,87.112499999999997,"NEW",373]
[98943,"NEWTECH BEVERAGE ","NT-25 STAND","NT-25 STAND","PLASTIC DISPENSING STAND (6/case)","ANCILLARY","ACTIVE","Y",null,null,27.542499999999997,"NEWT",375]
[81741,"NEWTECH BEVERAGE ","NT-6-SRAG","NT-6-SRAG","6 POSITION AIRPOT RACK FOR ZOJIRUSHI 3.0 LITER AIRPOT","ANCILLARY","ACTIVE","Y",null,null,68.942499999999995,"NEWT",376]
[81705,"NEWTECH BEVERAGE ","SR-AG30","SR-AG30","ZOJIRUSHI 3.0 LITER AIRPOT","ANCILLARY","ACTIVE","Y",null,null,72.162499999999994,"NEWT",377]
[80255,"NEWTECH BEVERAGE ","VYBE-25","VYBE-25","GRAVITY FLOW DISPENSER W/BASE","ANCILLARY","ACTIVE","Y",null,null,51.864999999999995,"NEWT",378]
[98942,"NEWTECH BEVERAGE ","VY-DE25N","VY-DE25N","ZOJIRUSHI 2.5 LITRE THERMAL SERVER (w/o factory base) C/W BREW THRU LID","ANCILLARY","ACTIVE","Y",null,null,52.324999999999996,"NEWT",379]
[99174,"TRIMARK SS KEMP","58001R","58001R","101 CUP ALUMINUM COFFEEMAKER - POLISHED EXTERIOR,K7001","ANCILLARY","ACTIVE","Y",null,null,153.52499999999998,"TRI",381]
[99173,"TRIMARK SS KEMP","58055R","58055R","55 CUP ALUMINUM COFFEEMAKER - POLISHED EXTERIOR,K7003","ANCILLARY","ACTIVE","Y",null,null,118.7145,"TRI",382]
[91852,"TRIMARK SS KEMP","58230R","58230R","30 CUP ALUMINUM COFFEEMAKER - POLISHED EXTERIOR,3 PRONG PLUG,K7033","ANCILLARY","ACTIVE","Y",null,null,71.058499999999995,"TRI",383]
[98823,"TRIMARK SS KEMP","K1355A","K1355A","55-CUP STAINLESS STEEL COFFEE URN","ANCILLARY","ACTIVE","Y",null,null,179.88299999999998,"TRI",384]
[93175,"SERVICE IDEAS","115/E-BLACK","115/E-BLACK","9 - LITER, ALFI FROSTED BALL SERVER-BLACK,  W/TWIST LID  (EACH)","ANCILLARY","ACTIVE","Y",null,null,33.073999999999998,"SER",386]
[93190,"SERVICE IDEAS","115/KC-COBALT BLUE","115/KC-COBALT BLUE","9 - LITER, ALFI FROSTED BALL SERVER-COBALT BLUE,  W/TWIST LID  (EACH)","ANCILLARY","ACTIVE","Y",null,null,33.073999999999998,"SER",387]
[92682,"SERVICE IDEAS","69215","69215","1.5 LITER, ALFI OPAL PREMIMUM CHROME SERVER","ANCILLARY","ACTIVE","Y",null,null,213.16399999999999,"SER",388]
[87924,"SERVICE IDEAS","APC22","APC22","2.2 LITER AIRPOT COVER-UP,  CHROME W/BRASS ACCENTS","ANCILLARY","ACTIVE","Y",null,null,223.50249999999997,"SER",389]
[96557,"SERVICE IDEAS","APCL22","APCL22","2.2 LITER ECO-AIR LEVER LID AIRPOT COVER UP - CHROME W/BRASS ACCENTS","ANCILLARY","ACTIVE","Y",null,null,223.51400000000001,"SER",390]
[87999,"SERVICE IDEAS","APR2BLC","APR2BLC","2 - AIRPOT RACK - BLACK","ANCILLARY","ACTIVE","Y",null,null,44.505000000000003,"SER",391]
[87965,"SERVICE IDEAS","APR3BLC","APR3BLC","3 - AIRPOT RACK - BLACK","ANCILLARY","ACTIVE","Y",null,null,51.910999999999994,"SER",392]
[84340,"SERVICE IDEAS","BNP19","BNP19","1.9 - LITER, BREW N' POUR STEEL VAC CARAFE  (CASE OF 6)","ANCILLARY","ACTIVE","Y",null,null,208.37999999999997,"SER",393]
[94049,"SERVICE IDEAS","CGC101SS","CGC101SS","1 LITER CLASSIC GLASS CARAFE - W/ S.S. EXTERIOR  (6 PER CASE)","ANCILLARY","ACTIVE","Y",null,null,120.12899999999998,"SER",394]
[88345,"SERVICE IDEAS","CGC101SSD","CGC101SSD","1 LITER DECAF CLASSIC GLASS CARAFE - W/ S.S. EXTERIOR  (6 PER CASE)","ANCILLARY","ACTIVE","Y",null,null,120.12899999999998,"SER",395]
[80863,"SERVICE IDEAS","CJ10SS","CJ10SS","1-LITER CLASSY VACUUM CARAFE  (CASE OF 6)","ANCILLARY","ACTIVE","Y",null,null,142.48499999999999,"SER",396]
[88088,"SERVICE IDEAS","ECA22S","ECA22S","2.2 LITER SATIN S.S. BODY FINISH,PUMP BLACK LID, GLASS LINED","ANCILLARY","ACTIVE","Y",null,null,29.600999999999996,"SER",397]
[88088,"SERVICE IDEAS","ECA22S","ECA22S","2.2 LITER SATIN S.S. BODY FINISH,PUMP BLACK LID, GLASS LINED","ANCILLARY","ACTIVE","Y",null,null,29.600999999999996,"SER",397]
[80478,"SERVICE IDEAS","ECO6-WH","ECO6-WH","EC06-WHITE, 20 OZ. ECO-SERVER (CASE OF 12)","ANCILLARY","ACTIVE","Y",null,null,136.06799999999998,"SER",399]
[97049,"SERVICE IDEAS","ECO13-BL","ECO13-BL","ECO13-BLACK, 1.3 LITER SERVER  (CASE OF 12)","ANCILLARY","ACTIVE","Y",null,null,137.31,"SER",400]
[92138,"SERVICE IDEAS","ECO13-WH","ECO13-WH","ECO13-WHITE, 1.3 LITER SERVER  (CASE OF 12)","ANCILLARY","ACTIVE","Y",null,null,137.31,"SER",401]
[84408,"SERVICE IDEAS","FVP12","FVP12","1.2 LITER - STEEL VAC CARAFES  (CASE OF 6)","ANCILLARY","ACTIVE","Y",null,null,164.91,"SER",402]
[84409,"SERVICE IDEAS","FVP15","FVP15","1.5 LITER - STEEL VAC CARAFES  (CASE OF 6)","ANCILLARY","ACTIVE","Y",null,null,183.54,"SER",403]
[92145,"SERVICE IDEAS","FVP20","FVP20","2 LITER -  STEEL VAC CARAFES    (CASE OF 6)","ANCILLARY","ACTIVE","Y",null,null,201.54899999999998,"SER",404]
[94500,"SERVICE IDEAS","ITSL5GPL","ITSL5GPL","5-GAL. TEA DISPENSER - SLIM","ANCILLARY","ACTIVE","Y",null,null,90.251999999999995,"SER",405]
[99508,"SERVICE IDEAS","NG101-BLACK","NG101-BLACK","1 LITER - THERMAL SERVER - BLACK","ANCILLARY","ACTIVE","Y",null,null,98.393999999999991,"SER",406]
[96045,"SERVICE IDEAS","PB101-BL","PB101-BL","1 LITER - THERMAL SERV, PUSH BUTTON SERVERS, BLACK  (6 IN A CASE)","ANCILLARY","ACTIVE","Y",null,null,93.49499999999999,"SER",407]
[96916,"SERVICE IDEAS","PB101BLD","PB101-BL-D","1 LITER - DECAF.,  THERMAL SERV, PUSH BUTTON SERVERS, BLACK  (6 IN A CASE)","ANCILLARY","ACTIVE","Y",null,null,93.49499999999999,"SER",408]
[99253,"SERVICE IDEAS","PWLA061","PWLA061","20 oz. - STEELVAC SERVER - C60 TYPE","ANCILLARY","ACTIVE","Y",null,null,32.970500000000001,"SER ",409,null,null,null,null,null," "]
[80773,"SERVICE IDEAS","SSN100","SSN100","S.S. 1- LTR. STEEL VAC CARAFES (SOLD IN A CASE OF 6) ","ANCILLARY","ACTIVE","Y",null,null,150.28199999999998,"SER",410]
[98689,"SERVICE IDEAS","SSA300","SSA300","S.S 3 LITER AIRPOTS","ANCILLARY","ACTIVE","Y",null,null,59.512499999999996,"SER",411]
[98690,"SERVICE IDEAS","SSA375","SSA375","S.S. 3.75 LITER AIRPOTS","ANCILLARY","ACTIVE","Y",null,null,67.332499999999996,"SER",412]
[85951,"SERVICE IDEAS","SSN70","SSN70","STAINLESS .7 LITER - STEEL VAC CARAFES","ANCILLARY","ACTIVE","Y",null,null,137.25249999999997,"SER",413]
[88810,"SERVICE IDEAS","WP20CH","WP20CH","2 LITER S.S. SERVER CHROME FINISH (EACH)","ANCILLARY","ACTIVE","Y",null,null,66.090499999999992,"SER",414]
[80401,"UPDATE INTERNATIONAL","AIS-190","AIS-190","VACUUM JUG 1.9L S/S-BS & BK PLA           ","ANCILLARY","ACTIVE","Y",null,null,26.334999999999997,"UPD",416]
[80782,"UPDATE INTERNATIONAL","EPB-40M","EPB-40M","ESPRESSO MILK PITCHER W/ MEASURING SCALE 40 oz.","ANCILLARY","ACTIVE","Y",null,null,10.212,"UPD",417]
[84676,"UPDATE INTERNATIONAL","KF-190","KF-190","BREW THRU HANDY POT 1.9 LT. - CHROME","ANCILLARY","ACTIVE","Y",null,null,26.162499999999998,"UPD",418]
[84939,"UPDATE INTERNATIONAL","NLDB-22/BK/BT","NLDB-22/BK/BT","COMPASS 2.2 LITER LEVER AIRPOT","ANCILLARY","ACTIVE","Y",null,null,27.024999999999999,"UPD",419]
[84305,"UPDATE INTERNATIONAL","NPD-25/BK/BT","NPD-25/BK/BT","2.5 LITER AIRPOT - W/PUSH BUTTON LID - BLACK - REG.COFF. (EACH)","ANCILLARY","ACTIVE","Y",null,null,41.469000000000001,"UPD",420]
[86778,"UPDATE INTERNATIONAL","NPD-25/BK/BT-CS","NPD-25/BK/BT-CS","2.5 LITER AIRPOT - W/PUSH BUTTON LID - BLACK - REG.COFF. (CS OF 6)","ANCILLARY","ACTIVE","Y",null,null,188.16299999999998,"UPD",421]
[100844,"UPDATE INTERNATIONAL","BDP-3G","BDP-3G","3 GALLON VISUAL DISPLAY UNIT WITH BASE - CASE OF 3 ONLY","ANCILLARY","ACTIVE","Y",null,null,71.759999999999991,"UPD",422]
[90328,"WWGRAINGER","38UN66","38UN66","10 GAL RESIDENTIAL (COMPACT) WATER HEATER 2000W 120V/25A","ANCILLARY","ACTIVE","Y",null,null,347.2885,"WWG",424]
[94053,"WWGRAINGER","38UN67","38UN67","15 GAL RESIDENTIAL (COMPACT)  WATER HEATER - OUTPUT 2000W 120V/25A","ANCILLARY","ACTIVE","Y",null,null,384.88200000000001,"WWG",425]
[80328,"WWGRAINGER","38UN68","38UN68","20 GAL RESIDENTIAL (COMPACT) WATER  HEATER 2000W 120V/25A","ANCILLARY","ACTIVE","Y",null,null,416.32299999999992,"WWG",426]
[94018,"WWGRAINGER","38UN65","38UN65","6-GAL RESIDENTIAL (COMPACT) WATER HEATER,  2000W, 120V/25A ","ANCILLARY","ACTIVE","Y",null,null,352.98099999999999,"WWG",427]
[81227,"WWGRAINGER","3VU62","3VU62","WATER HEATER STAND  (22 x 22 x 16)","ANCILLARY","ACTIVE","Y",null,null,110.72199999999999,"WWG",428]
[83582,"WWGRAINGER","38UN42","38UN42","30 GAL RESIDENTIAL WATER HEATER  9000W, 240V/50A","ANCILLARY","ACTIVE","Y",null,null,351.53199999999998,"WWG",429]
[96514,"WWGRAINGER","38UN51","38UN51","40 GAL RESIDENTIAL WATER HEATER - 9000W. 240V/50A","ANCILLARY","ACTIVE","Y",null,null,546.39949999999999,"WWG",430]
[80915,"WWGRAINGER","38UN47","38UN47","50-GAL RESIDENTIAL WATER HEATER (TALL)  9000W, 240V/50A  ","ANCILLARY","ACTIVE","Y",null,null,630.476,"WWG",431]
[94017,"WWGRAINGER","3WA76","3WA76","80-GAL RESIDENTIAL WATER HEATER, 9000W, 240V/50A","ANCILLARY","ACTIVE","Y",null,null,1070.3969999999999,"WWG",432]
[84679,"WWGRAINGER","38UN41","38UN41","30 GAL RESIDENTIAL (COMPACT) WATER HEATER 2000W, 120V/25A","NONTAGGED","ACTIVE","Y",null,null,462.21949999999998,"WWG",433]
[98902,"WWGRAINGER","4JY89","4JY89","2.5 GAL WATER HEATER, POINT OF USE 1500W, 120V/20A","NONTAGGED","ACTIVE","Y",null,null,224.13499999999999,"WWG",434]
[98091,"WWGRAINGER","4JY90","4JY90","4 GAL WATER HEATER, POINT OF USE 1500W, 120V/20A ","ANCILLARY","ACTIVE","Y",null,null,175.12199999999999,"WWG",435]
[96674,"WWGRAINGER","4JY91","4JY91","WATER HEATER, POINT OF USE 1500W, 208V/40A ","ANCILLARY","ACTIVE","Y",null,null,337.92750000000001,"WWG",436]
[96516,"WWGRAINGER","6UT01","6UT01","10 GAL COMMERCIAL WATER HEATER - 3000W, 120V/25A","ANCILLARY","ACTIVE","Y",null,null,400.22299999999996,"WWG",437]
[80833,"WWGRAINGER","6UT02","6UT02","10-GAL. COMMERCIAL WATER HEATER  6000W 208V/30A","ANCILLARY","ACTIVE","Y",null,null,371.66849999999999,"WWG",438]
[80920,"WWGRAINGER","6UT05","6UT05","20 GAL COMMERICAL ELECTRIC WATER  HEATER 6000W 29A 208V","ANCILLARY","ACTIVE","Y",null,null,422.13049999999998,"WWG",439]
[92642,"WWGRAINGER","6UT09","6UT09","6  GAL COMMERCIAL WATER HEATER 3000W, 208V/20A","ANCILLARY","ACTIVE","Y",null,null,384.79,"WWG",440]

{"sheet":"Power Kits","index":6,"n_rows":7,"n_cols":11,"rows_kept":7,"cut":false,"hidden":true,"merged":[]}
["Catalog_ID","Section","Model","Manufacturer Part ID","Description","Tag Type","Active","US Purchaseable","Equipment_Model","Default","Price"]
[88564,"DE LIQUID - ACCESSORIES AND RE-POWER KITS",255736,255736,"255736: POWER KIT 120V/15A","NONTAGGED","ACTIVE","Y","NG100",true,39.590000000000003]
[88583,"DE LIQUID - ACCESSORIES AND RE-POWER KITS",255737,255737,"255737: POWER KIT 208V/20A","NONTAGGED","ACTIVE","Y","NG100",false,167.67]
[88587,"DE LIQUID - ACCESSORIES AND RE-POWER KITS",255738,255738,"255738: POWER KIT 208V/30A","NONTAGGED","ACTIVE","Y","NG100",false,78.92]
[88564,"DE LIQUID - ACCESSORIES AND RE-POWER KITS",255736,255736,"255736: POWER KIT 120V/15A","NONTAGGED","ACTIVE","Y","NG300",false,39.590000000000003]
[88583,"DE LIQUID - ACCESSORIES AND RE-POWER KITS",255737,255737,"255737: POWER KIT 208V/20A","NONTAGGED","ACTIVE","Y","NG300",false,167.67]
[88587,"DE LIQUID - ACCESSORIES AND RE-POWER KITS",255738,255738,"255738: POWER KIT 208V/30A","NONTAGGED","ACTIVE","Y","NG300",true,78.92]

{"sheet":"Novation Allowance Tool","index":7,"n_rows":22,"n_cols":23,"rows_kept":22,"cut":false,"hidden":false,"merged":[]}
["Product","UOM","Volume Time Frame","Qty","Allowance",null,"Instructions:",null,null,null,null,null,null,null,null,null,null,null,"Liquid",7.28,null,"Time Frame"]
["Liquid","CS","Weekly",null,{"$f":"IF(D2>0,D2*VLOOKUP(A2,$S$1:$T$5,2,FALSE)*VLOOKUP(C2,$V$2:$W$4,2,FALSE)*5,0)","v":0},null,null,null,null,null,null,null,null,null,null,null,null,null,"R&G",0.28999999999999998,null,"Weekly",52]
["R&G","LB","Weekly",null,{"$f":"IF(D3>0,D3*VLOOKUP(A3,$S$1:$T$5,2,FALSE)*VLOOKUP(C3,$V$2:$W$4,2,FALSE)*3,0)","v":0},null,1,"Determine Equipment Needed Based on Customer Walkthrough",null,null,null,null,null,null,null,null,null,null,"Capp",7.34,null,"Monthly",12]
["Capp","CS","Weekly",null,{"$f":"IF(D4>0,D4*VLOOKUP(A4,$S$1:$T$5,2,FALSE)*VLOOKUP(C4,$V$2:$W$4,2,FALSE)*3,0)","v":0},null,2,"Obtain Volume by Product Category Based on One of the Following Time Frames:",null,null,null,null,null,null,null,null,null,null,"Tea",3.34,null,"Yearly",1]
["Tea","CS","Weekly",null,{"$f":"IF(D5>0,D5*VLOOKUP(A5,$S$1:$T$5,2,FALSE)*VLOOKUP(C5,$V$2:$W$4,2,FALSE)*3,0)","v":0},null,null,"a","Weekly",null,null,null,null,null,null,null,null,null,"BIB",9.36]
["BIB","CS","Weekly",null,{"$f":"IF(D6>0,D6*VLOOKUP(A6,$S$1:$T$5,2,FALSE)*VLOOKUP(C6,$V$2:$W$4,2,FALSE)*3,0)","v":0},null,null,"b","Monthly"]
["Total Equip Allowance",null,null,null,{"$f":"SUM(E2:E6)","v":0},null,null,"c","Annually"]
[null,null,null,null,null,null,3,"Complete Equipment Allowance Tool by Entering the Following Information:"]
[null,null,null,null,null,null,null,"a","Drop Down: Select Time Frame Based on Step 2"]
[null,null,null,null,null,null,null,"b","Volume"]
[null,null,null,null,null,null,4,"Complete ERF Form"]
[null,null,null,null,null,null,null,"a","Cross Reference Equipment Allowance Tool to Confirm Amount is Within Approval Limits by Each Product Category"]
[null,null,null,null,null,null,null,"b","Verify Volume Assumptions Entered Matches the Equipment Allowance Tool Assumptions"]
[null,null,null,null,null,null,5,"Send ERF and Equipment Allowance Tool to Regional Sales Manager for Approval"]
[null,null,null,null,null,null,null,"a","If ERF is equal to or less than Equipment Allowance Tool by All Product Categories, Send to Customer.Master@jmsmucker.com for Processing (Go to Step 6)"]
[null,null,null,null,null,null,null,"b","If ERF is greater than the Equipment Allowance Tool by Any Product Category, Reach Out to Andrea Gajewski and Paula Ramsey"]
[null,null,null,null,null,null,6,"Customer Master will do one of the following:"]
[null,null,null,null,null,null,null,"a","If 5 A, Customer Master can Process (Must review ERF and Equipment Allowance Tool)"]
[null,null,null,null,null,null,null,"b","If 5 B, Customer Master must receive Approval from Andrea and Paula Prior to Processing"]
[null,null,null,null,null,null,null,"c","Any ERF with Equipment Greater than $10,000, and/or Ancillaries Greater than $1,000, will need Financial Approval (to meet audit approval)"]
[]
[null,null,null,null,null,null,"**","Customer Master will compare ERF request to potential purchase list for validation purposes"]

{"sheet":"Sheet Parameters","index":8,"n_rows":24,"n_cols":15,"rows_kept":24,"cut":false,"hidden":true,"merged":[[23,3,23,7],[11,7,11,12],[12,4,12,6],[12,7,12,8],[12,9,12,12],[22,3,22,4],[16,3,16,5],[16,7,16,11],[17,3,17,5],[17,7,17,11],[18,6,18,10]]}
["Has CID",false,null,null,false]
["First CID Line",32,null,null,30]
["Last CID Line",32,null,null,30]
["Has Equipment ",false,null,null,false]
["First Equipment Line",36,null,null,34]
["Last Equipment Line",37,null,null,35]
["Has Ancillary",false,null,null,false]
["First Ancillary Line",41,null,null,39]
["Last Ancillary Line",41,null,null,39]
[]
[]
["Delete Line","Quantity","UOM","Case UPC Code","Product Description"]
[]
[]
[]
[]
["Delete Line","Qty","Catalog ID","Item Description",null,null,"Site Ready","Install Location/Floor",null,null,null,null,"Unit Price","Extended Price","Confirmed"]
[null,null,null,null,null,null,null,null,null,null,null,null,null,{"$f":"(M18*B18)","v":0}]
[null,"Nema:",null,"H2O Temp:",null,"Electric Location:",null,null,null,null,null,"Liquid Ratio:"]
[]
[]
[]
["Delete Line","Qty","Catalog ID","Item Description",null,null,null,null,null,null,null,null,"Unit Price","Extended Price"]
[null,null,null,null,null,null,null,null,null,null,null,null,null,{"$f":"(M24*B24)","v":0}]

{"sheet":"Drop Downs","index":9,"n_rows":70,"n_cols":13,"rows_kept":70,"cut":false,"hidden":true,"merged":[]}
[]
[]
[]
["Cell","Drop Down Slection",null,null,"Cell","Drop Down Selection",null,null,"Machine Configuration",null,null,"Machine Configuration"]
["C5","New",null,null,null,null,null,null,"Nema","110v 5-15 ",null,"Liqd Ratio","5:1"]
["New\\Existing","Existing",null,null,null,null,null,null,null,"         5-20",null,null,"6:1"]
["J4","Loan",null,null,null,null,null,null,null,"220v 6-20",null,null,"7:1"]
["Account_Type","Cash",null,null,"J6","CST - C-Store",null,null,null,"         L14-30",null,null,"8:1"]
["C21","Addition/Penetration",null,null,"Channel","GAM - Gaming",null,null,null,"         L6-30",null,null,"9:1"]
["Placement_Reason","New",null,null,null,"INT - Internal",null,null,null,"         6-30",null,null,"10:1"]
[null,"Replacement",null,null,null,"ISS - In Store Solutions",null,null,null,"         6-50",null,null,"11:1"]
[null,"Food show/Special Event",null,null,null,"ITN - International",null,null,null,"Special order - Contact FSM",null,null,"12:1"]
["C22","1300 - Yes",null,null,null,"KEY - Broadline Distributor",null,null,"H2O Temp","Cold-3/8-Yes",null,null,"13:1"]
["Install_Required","1900 - Product Branding",null,null,null,"LOD - Lodging",null,null,null,"Hot-3/8-Yes",null,null,"14:1"]
[null,"No",null,null,null,"MIL - Military",null,null,null,"Hot-3/8-No",null,null,"15:1"]
["C23","Service",null,null,null,"NAR - National Restaurant",null,null,null,"Cold-1/4-Yes",null,null,"16:1"]
["Ship_To","Ship Direct",null,null,null,"NON - Non Commercial",null,null,"Elec Loc","Above Counter",null,null,"17:1"]
[null,"Other (specify in Notes)",null,null,null,"NON/OCS - Non Commercial OCS",null,null,null,"Below Counter - Required 2 inch pre drilled hole",null,null,"18:1"]
["B47","CK",null,null,null,"OCS - Office Coffee Service",null,null,"Site Ready","Yes",null,null,"19:1"]
["CM_User","NY",null,null,null,"SYS - Sysco Broadline",null,null,null,"No",null,null,"20:1"]
[null,"RM",null,null,"J9","Direct from JMS",null,null,"Hot Filter",89898,null,null,"21:1"]
[null,"Temp",null,null,"Purchase_Product_From","Through Distributor",null,null,null,null,null,null,"22:1"]
[null,null,null,null,null,"Direct & Dist (Both)",null,null,null,null,null,null,"23:1"]
[null,null,null,null,"D41","alester",null,null,null,null,null,null,"24:1"]
[null,null,null,null,"FSR_User","kcrowson",null,null,null,null,null,null,"25:1"]
[null,null,null,null,null,"kmellinger",null,null,null,null,null,null,"26:1"]
[null,null,null,null,null,"kwalsh",null,null,null,null,null,null,"27:1"]
[null,null,null,null,null,"sbrown4",null,null,null,null,null,null,"28:1"]
[null,null,null,null,null,"srider",null,null,null,null,null,null,"29:1"]
[null,null,null,null,null,"tstokes",null,null,null,null,null,null,"30:1"]
[null,null,null,null,null,"ffatima",null,null,null,null,null,null,"31:1"]
[null,null,null,null,null,"cengler1",null,null,null,null,null,null,"32:1"]
[null,null,null,null,null,"Temp",null,null,null,null,null,null,"33:1"]
[null,null,null,null,null,null,null,null,null,null,null,null,"34:1"]
[null,null,null,null,null,null,null,null,null,null,null,null,"35:1"]
[null,null,null,null,null,null,null,null,null,null,null,null,"36:1"]
[null,null,null,null,null,null,null,null,null,null,null,null,"37:1"]
[null,null,null,null,null,null,null,null,null,null,null,null,"38:1"]
[null,null,null,null,null,null,null,null,null,null,null,null,"39:1"]
[null,null,null,null,null,null,null,null,null,null,null,null,"40:1"]
[null,null,null,null,null,null,null,null,null,null,null,null,"41:1"]
[null,null,null,null,null,null,null,null,null,null,null,null,"42:1"]
[null,null,null,null,null,null,null,null,null,null,null,null,"43:1"]
[null,null,null,null,null,null,null,null,null,null,null,null,"44:1"]
[null,null,null,null,null,null,null,null,null,null,null,null,"45:1"]
[null,null,null,null,null,null,null,null,null,null,null,null,"46:1"]
[null,null,null,null,null,null,null,null,null,null,null,null,"47:1"]
[null,null,null,null,null,null,null,null,null,null,null,null,"48:1"]
[null,null,null,null,null,null,null,null,null,null,null,null,"49:1"]
[null,null,null,null,null,null,null,null,null,null,null,null,"50:1"]
[null,null,null,null,null,null,null,null,null,null,null,null,"51:1"]
[null,null,null,null,null,null,null,null,null,null,null,null,"52:1"]
[null,null,null,null,null,null,null,null,null,null,null,null,"53:1"]
[null,null,null,null,null,null,null,null,null,null,null,null,"54:1"]
[null,null,null,null,null,null,null,null,null,null,null,null,"55:1"]
[null,null,null,null,null,null,null,null,null,null,null,null,"56:1"]
[null,null,null,null,null,null,null,null,null,null,null,null,"57:1"]
[null,null,null,null,null,null,null,null,null,null,null,null,"58:1"]
[null,null,null,null,null,null,null,null,null,null,null,null,"59:1"]
[null,null,null,null,null,null,null,null,null,null,null,null,"60:1"]
[null,null,null,null,null,null,null,null,null,null,null,null,"61:1"]
[null,null,null,null,null,null,null,null,null,null,null,null,"62:1"]
[null,null,null,null,null,null,null,null,null,null,null,null,"63:1"]
[null,null,null,null,null,null,null,null,null,null,null,null,"64:1"]
[null,null,null,null,null,null,null,null,null,null,null,null,"65:1"]
[null,null,null,null,null,null,null,null,null,null,null,null,"66:1"]
[null,null,null,null,null,null,null,null,null,null,null,null,"67:1"]
[null,null,null,null,null,null,null,null,null,null,null,null,"68:1"]
[null,null,null,null,null,null,null,null,null,null,null,null,"69:1"]
[null,null,null,null,null,null,null,null,null,null,null,null,"70:1"]

{"sheet":"Approval","index":10,"n_rows":1,"n_cols":7,"rows_kept":1,"cut":false,"hidden":false,"merged":[]}
["FIRSTNAME","LASTNAME","EMAIL","NOTE","STATUS","DATE","COMMENT"]

{"sheet":"Nema Plugs","index":11,"n_rows":51,"n_cols":6,"rows_kept":51,"cut":false,"hidden":true,"merged":[]}
["Model","NEMA Plug","Volts","Amps","Default","Power Kit"]
["C60","5-15",120,15]
["NG100","5-15",120,15,"Yes"]
["NG300","5-15",120,15,null,88564]
["120-15","5-15",120,15]
["C110","5-20",120,20,"Yes"]
["C600","5-20",120,20]
["C700","5-20",120,20]
["C110","6-20",208,20,"Yes"]
["C600","L6-20",208,20,"Yes"]
["C700","L6-20",208,20,"Yes"]
["C300","L6-30",208,30]
["C600","L6-30",208,30]
["C700","L6-30",208,30]
["NG100","L14-20",208,20,null,88583]
["NG300","L14-20",208,20,null,88583]
["NG100","L14-30",208,30,null,88587]
["NG300","L14-30",208,30,"Yes"]
["C300","L14-30",208,30]
["C300","6-30",208,30]
["C600","6-30",208,30]
["C700","6-30",208,30]
["C300","10-30",208,30]
["C600","10-30",208,30]
["C700","10-30",208,30]
["NG100","14-30",208,30,null,88587]
["NG300","14-30",208,30,"Yes"]
["C300","6-50",208,50]
["220-50","14-50",208,50]
["Dual Voltage 20-20","5-20",120,20]
["Dual Voltage 20-20","6-20",208,20]
["Dual Voltage 20-20","L6-20",208,20]
["Dual Voltage 20-20","L14-20",208,20]
["Dual Voltage 20-30","5-20",120,20]
["Dual Voltage 20-30","L6-30",208,30]
["Dual Voltage 20-30","6-30",208,30]
["Dual Voltage 20-30","10-30",208,30]
["Dual Voltage 20-30","14-30",208,30]
["220-20","L14-20",208,20]
["220-20","L6-20",208,20]
["220-20","6-20",208,20]
["220-30","L6-30",208,30]
["220-30","L14-30",208,30]
["220-30","6-30",208,30]
["220-30","10-30",208,30]
["220-30","14-30",208,30]
["220-50","6-50",208,50]
["High Volume R&G","Special Order"]
["120-20","5-20",120,20]
["HV3","14-50",208,50]
["HV3","6-50",208,50]

{"sheet":"Workflow","index":12,"n_rows":0,"n_cols":0,"rows_kept":0,"cut":false,"hidden":true,"merged":[]}